Cogmind - Beta 11.1 @@@ ROGUE MODE // 2022.07.19 @ 20:17:54 // Winter2019/RPGLIKE Player: Hermelin Result: Destroyed by B-99 Colossus with Multirail Performance ------------- Evolutions (9) 4500 Regions Visited (34) 6800 Robots Destroyed (669) 3345 Value Destroyed (34947) 34947 Prototype IDs (115) 2300 Alien Tech Used (2) 400 Bonus (25813) 25813 TOTAL SCORE: 78105 Bonus ------- High Alert Combat Kills 11663 Follower Combat Kills 1198 Entered Garrisons 2000 Used RIF Installer 5000 Aligned with FarCom 300 Triggered Deep Caves Wall 500 Exposed GOLEM Chamber 500 Used Core Reset Matrix 3000 Scanned by Researcher 500 Met Sigix 2000 Friendly Fire -848 Cogmind --------- Core Integrity 0/1500 Matter 300/300 Energy 807/1100 System Corruption 0% Temperature Cool (0) Movement Flying (42) Location -1/Access Parts ------- > --- POWER (3) -------- Hybrid Antimatter Reactor Zionite Light DM Reactor > --- PROPULSION (5) --- Xenon Bombardment Thruster Flying Fortress v7 > --- UTILITY (13) ----- Advanced Terrain Scanner Surveybot 24 Chip Improved Salvage Targeting Computer Experimental Targeting Computer Experimental Target Analyzer Improved Armor Integrity Analyzer Advanced Weapon Cycler Improved Reaction Control System Advanced Phase Shifter Centrium Medium Armor Plating Advanced Force Field System Purifier > --- WEAPON (3) ------- Core Cannon CR-A16's Behemoth Slayer > --- INVENTORY (6) ---- Experimental Biometal Heavy Treads Subatomic Replicator 8R-AWN's Boregun Sigix Containment Pod Peak State ------------ > --- POWER ------------ Hybrid Antimatter Reactor Zionite Light DM Reactor Quantum Reactor > --- PROPULSION ------- Xenon Bombardment Thruster Flying Fortress v7 > --- UTILITY ---------- Experimental Power Amplifier Advanced Terrain Scanner Surveybot 24 Chip Improved Salvage Targeting Computer Experimental Targeting Computer Experimental Target Analyzer Improved Armor Integrity Analyzer Advanced Weapon Cycler Improved Reaction Control System Advanced Phase Shifter Centrium Medium Armor Plating Advanced Force Field System Purifier > --- WEAPON ----------- Core Cannon CR-A16's Behemoth Slayer > --- INVENTORY -------- Experimental Biometal Heavy Treads Subatomic Replicator 8R-AWN's Boregun Sigix Containment Pod [Rating: 199] Favorites ----------- Power Light Neutrino Core Engine F-cell Engine Power Core Light Neutrino Core Reactor Hybrid Antimatter Reactor Propulsion Medium Treads Treads Medium Treads Wheel Wheel Hover Unit Zionite Glidesys I Flight Unit Flying Fortress v7 Utility Advanced Weapon Cycler Device Advanced Weapon Cycler Storage Large Battery Processor Improved Armor Integrity Analyzer Hackware Hacking Suite Protection Medium Armor Plating Weapon 8R-AWN's Boregun Energy Gun Medium Laser Energy Cannon Core Cannon Ballistic Gun 8R-AWN's Boregun Launcher Mini Grenade Launcher Special Weapon Improved Remote Datajack Impact Weapon Powered Hammer Slashing Weapon Phasing Sabre Piercing Weapon CR-A16's Pointy Stick Special Melee Weapon Datajack Build | -11 -10 -10 -9 -9 -9 -8 -8 -8 -8 -8 -7 -7 -7 -7 -6 -6 -6 -6 -6 -6 -6 -5 -5 -5 -5 -5 -4 -4 -3 -3 -2 -2 -2 -1 ------- Run | Scr Mat Min Mat Min Exi Min Mat Gar Mat Gar Fac Gar Fac Gar Fac Gar Fac Low Low Zio Dee Pro Fac Gar Fac Gar Fac Gar Res Gar Res Gar Qua Acc Slots Evolved 20 | 3 3 . 3 2 . . 2 . . 1 . 1 . . . 1 . 1 . . . . . . . . . . 1 . 1 . 1 . Power 2 | . . . . 1 . . . . . . . . . . . . . 1 . . . . . . . . . . . . . . . . Propulsion 4 | 1 . . . 1 . . 1 . . . . . . . . . . . . . . . . . . . . . . . . . 1 . Utility 12 | 1 2 . 3 . . . 1 . . 1 . 1 . . . 1 . . . . . . . . . . . . 1 . 1 . . . Weapon 2 | 1 1 . . . . . . . . . . . . . . . . . . . . . . . . . . . . . . . . . Parts Attached 248 | 7 13 . 16 2 11 2 12 3 5 3 15 2 4 . 4 4 16 8 6 10 29 6 3 5 3 7 5 1 11 3 1 6 20 5 Power 13 | 1 . . . 1 2 . . . . . 1 . . . 1 . 3 1 . . 1 . . . . . . . 1 . . . . 1 Engine 3 | 1 . . . 1 . . . . . . . . . . 1 . . . . . . . . . . . . . . . . . . . Core 6 | . . . . . 2 . . . . . 1 . . . . . 3 . . . . . . . . . . . . . . . . . Reactor 4 | . . . . . . . . . . . . . . . . . . 1 . . 1 . . . . . . . 1 . . . . 1 Propulsion 36 | 2 3 . 4 1 . . 4 . 2 . 8 . 1 . 2 . 3 1 1 . 3 . . . . . . . . . . . 1 . Treads 32 | 1 3 . 4 1 . . 4 . 2 . 8 . 1 . 2 . 3 1 1 . 1 . . . . . . . . . . . . . Leg . | . . . . . . . . . . . . . . . . . . . . . . . . . . . . . . . . . . . Wheel 1 | 1 . . . . . . . . . . . . . . . . . . . . . . . . . . . . . . . . . . Hover 1 | . . . . . . . . . . . . . . . . . . . . . 1 . . . . . . . . . . . . . Flight 2 | . . . . . . . . . . . . . . . . . . . . . 1 . . . . . . . . . . . 1 . Utility 130 | 2 5 . 7 . 3 2 7 1 3 3 5 1 3 . . 3 8 3 3 6 14 2 3 5 2 2 3 1 8 3 1 5 12 4 Device 81 | 1 . . 2 . 2 1 3 . 3 2 3 . 1 . . 2 5 2 3 6 8 2 3 3 1 2 3 . 7 3 1 2 7 3 Storage 3 | . . . . . . . . . . . . . . . . . . . . . 1 . . 2 . . . . . . . . . . Processor 10 | . . . 2 . 1 . . 1 . . . . 1 . . . . 1 . . 1 . . . . . . . . . . . 3 . Hackware 10 | . . . 2 . . . . . . 1 1 . 1 . . 1 . . . . . . . . 1 . . 1 1 . . 1 . . Protection 26 | 1 5 . 1 . . 1 4 . . . 1 1 . . . . 3 . . . 4 . . . . . . . . . . 2 2 1 Artifact . | . . . . . . . . . . . . . . . . . . . . . . . . . . . . . . . . . . . Weapon 69 | 2 5 . 5 . 6 . 1 2 . . 1 1 . . 1 1 2 3 2 4 11 4 . . 1 5 2 . 2 . . 1 7 . Energy Gun 9 | 2 . . . . . . . . . . . . . . . . . . . . 4 . . . . . 1 . . . . 1 1 . Energy Cannon 1 | . . . . . . . . . . . . . . . . . . . . . . . . . . . . . . . . . 1 . Ballistic Gun 23 | . 5 . 4 . 4 . 1 . . . . . . . . 1 . 1 . 1 2 . . . . 1 1 . . . . . 2 . Ballistic Cannon . | . . . . . . . . . . . . . . . . . . . . . . . . . . . . . . . . . . . Launcher 4 | . . . 1 . 1 . . . . . . . . . . . . . . . . 2 . . . . . . . . . . . . Special Weapon 8 | . . . . . . . . . . . 1 . . . . . . 1 . 1 1 . . . 1 1 . . . . . . 2 . Impact Weapon 6 | . . . . . . . . 2 . . . 1 . . 1 . 2 . . . . . . . . . . . . . . . . . Slashing Weapon 3 | . . . . . . . . . . . . . . . . . . 1 1 . . . . . . 1 . . . . . . . . Piercing Weapon 14 | . . . . . . . . . . . . . . . . . . . 1 2 4 2 . . . 2 . . 2 . . . 1 . Special Melee Weapon 1 | . . . . . 1 . . . . . . . . . . . . . . . . . . . . . . . . . . . . . Unidentified Prototypes 16 | . . . . . . . . . . . . . . . . . 2 1 . 1 8 2 . . . . . . 2 . . . . . Parts Lost 1 | . . . . . . . . . . . . . . . . . . . . . . . . . . . . . . . . 1 . . Power . | . . . . . . . . . . . . . . . . . . . . . . . . . . . . . . . . . . . Propulsion . | . . . . . . . . . . . . . . . . . . . . . . . . . . . . . . . . . . . Utility 1 | . . . . . . . . . . . . . . . . . . . . . . . . . . . . . . . . 1 . . Weapon . | . . . . . . . . . . . . . . . . . . . . . . . . . . . . . . . . . . . Highest Loss Streak 1 | . . . . . . . . . . . . . . . . . . . . . . . . . . . . . . . . 1 . . To Critical Strikes . | . . . . . . . . . . . . . . . . . . . . . . . . . . . . . . . . . . . Average Slot Usage (%) 90 | . 98 100 98 97 91 100 94 94 94 93 93 92 93 94 93 94 94 94 94 91 90 76 76 75 76 75 76 76 76 76 77 80 81 78 Engine 2 | . 11 10 7 7 9 . . . . . . . . . 3 5 5 4 4 4 3 . . . . . . . . . . . . . Core 4 | . . . . . 3 13 11 11 11 11 10 10 10 10 6 5 4 4 4 4 . . . . . . . . . . . . . . Reactor 3 | . . . . . . . . . . . . . . . . . . 3 4 4 8 9 9 9 9 9 9 9 9 9 8 8 8 8 Treads 15 | . 11 10 9 17 20 20 18 23 23 22 21 21 21 21 20 20 20 18 19 19 16 . . . . . . . . . . . . . Device 17 | . 11 10 2 6 9 20 20 20 17 17 18 15 16 10 10 14 15 14 17 20 21 23 23 22 20 19 19 19 17 17 20 24 27 28 Processor 14 | . . . 9 14 13 13 9 7 11 11 11 10 11 15 15 15 15 17 19 19 18 19 19 19 19 19 19 19 18 18 17 17 19 20 Hackware 6 | . . . 11 6 6 6 5 5 5 5 8 10 12 15 15 15 15 11 5 . . . . . 2 4 4 4 8 9 8 7 2 . Protection 7 | . 19 30 24 21 16 6 6 5 5 5 5 7 5 5 5 5 4 4 4 4 4 4 4 4 4 4 4 4 4 4 4 3 4 3 Ballistic Gun 11 | . 23 30 16 14 8 20 18 11 11 11 11 10 10 10 10 9 10 9 9 8 8 9 9 9 9 9 8 9 9 9 8 4 5 . Impact Weapon 1 | . . . . . . . . 4 5 5 1 2 5 5 4 5 5 1 . . . . . . . . . . . . . . . . Piercing Weapon 1 | . . . . . . . . . . . . . . . . . . . . 3 3 4 4 4 3 1 4 4 3 4 4 4 4 4 Naked Turns . | . . . . . . . . . . . . . . . . . . . . . . . . . . . . . . . . . . . Heaviest Build 83 | 13 29 29 32 34 57 51 69 69 68 72 72 74 83 67 67 65 68 77 79 82 81 60 60 64 65 67 65 63 65 63 68 70 74 72 Greatest Support 121 | 20 20 10 45 65 65 65 85 85 90 90 99 97 97 97 103 103 119 119 121 121 121 60 60 65 65 65 65 65 65 65 70 70 76 76 Greatest Overweight (x) 10 | 1 2 2 3 . . 1 1 . . . 1 . . . . . . . . . 10 . . . . 1 . . . . . . . . Average Overweight (x) . | . 1 2 1 . . . . . . . . . . . . . . . . . . . . . . . . . . . . . . . Largest Inventory Capacity 6 | 2 2 2 3 3 3 3 4 4 4 4 4 4 5 5 5 5 5 5 5 5 5 5 5 5 6 6 6 6 6 6 6 6 6 6 Average Capacity 4 | 2 2 2 2 3 3 3 3 4 4 4 4 4 4 5 5 5 5 5 5 5 5 5 5 5 5 6 6 6 6 6 6 6 6 6 Most Carried 6 | 2 2 2 3 3 3 3 4 4 4 4 4 4 5 5 5 5 5 5 5 5 5 5 5 5 6 6 6 6 6 6 6 6 6 6 Average Carried 4 | 1 1 2 2 3 2 3 3 3 4 3 3 4 4 5 4 4 4 4 4 4 4 5 4 4 5 6 6 6 5 6 5 5 5 5 Final Capacity 6 | 2 2 2 3 3 3 3 4 4 4 4 4 4 5 5 5 5 5 5 5 5 5 5 5 5 6 6 6 6 6 6 6 6 6 6 Final Carried 6 | 2 2 2 3 3 3 3 4 4 4 3 4 4 5 5 5 5 5 5 5 5 5 5 5 5 6 6 6 6 6 6 5 6 6 6 Class Distribution -------------------- 40% | Scavenger-Mutant 12% | Scavenger-Assassin 9% | Scavenger-Scout 8% | Hacker-Mutant 8% | Mutant 8% | Hacker-Scout 7% | Scavenger-Gunner 3% | Tank Dominant Class ---------------- Tank | -10/Materials Tank | -10/Mines Hacker-Mutant | -9/Materials Hacker-Mutant | -9/Mines Hacker-Mutant | -9/Exiles Scavenger-Gunner | -8/Mines Scavenger-Gunner | -8/Materials Scavenger-Assassin | -8/Garrison Scavenger-Mutant | -8/Materials Scavenger-Mutant | -8/Garrison Scavenger-Mutant | -7/Factory Scavenger-Mutant | -7/Garrison Scavenger-Mutant | -7/Factory Scavenger-Mutant | -7/Garrison Scavenger-Mutant | -6/Factory Scavenger-Mutant | -6/Garrison Scavenger-Mutant | -6/Factory Scavenger-Mutant | -6/Lower Caves Scavenger-Mutant | -6/Lower Caves Scavenger-Mutant | -6/Zion Scavenger-Assassin | -6/Deep Caves Scavenger-Scout | -5/Proximity Caves Scavenger-Scout | -5/Factory Scavenger-Scout | -5/Garrison Hacker-Scout | -5/Factory Hacker-Scout | -5/Garrison Hacker-Scout | -4/Factory Hacker-Scout | -4/Garrison Hacker-Scout | -3/Research Hacker-Scout | -3/Garrison Hacker-Scout | -2/Research Hacker-Scout | -2/Garrison Scavenger-Scout | -2/Quarantine Scavenger-Scout | -1/Access Resources | -11 -10 -10 -9 -9 -9 -8 -8 -8 -8 -8 -7 -7 -7 -7 -6 -6 -6 -6 -6 -6 -6 -5 -5 -5 -5 -5 -4 -4 -3 -3 -2 -2 -2 -1 ----------- Run | Scr Mat Min Mat Min Exi Min Mat Gar Mat Gar Fac Gar Fac Gar Fac Gar Fac Low Low Zio Dee Pro Fac Gar Fac Gar Fac Gar Res Gar Res Gar Qua Acc Matter Collected 20295 | 270 581 3 756 73 595 306 1373 900 564 282 1829 537 126 564 700 664 681 784 456 812 957 524 184 1052 68 539 776 622 414 614 . 767 862 60 Remotely . | . . . . . . . . . . . . . . . . . . . . . . . . . . . . . . . . . . . Salvage Created 34590 | 137 858 . 1221 69 344 298 2033 1434 1434 428 3376 836 237 913 1340 1265 1210 1063 708 928 2933 502 326 1717 126 601 1081 1479 621 1512 . 1486 1273 801 Parts 2152 | 3 76 . 101 6 57 28 112 91 83 21 174 58 24 61 64 72 79 62 37 84 104 75 28 112 6 45 97 65 45 74 . 106 82 20 Haulers Intercepted 20 | . 2 . 5 . . . 5 . 2 . . . . . 1 . 1 . . . . . . . . . 2 . 1 . . . . 1 Recyclers Shooed 8 | . . . 2 . . 1 . . . . 1 . . . . . 2 . . . . . 1 . . . 1 . . . . . . . Parts Field Recycled 10 | . . . . . . . . . . . . . 10 . . . . . . . . . . . . . . . . . . . . . Retrieved Matter 153 | . . . . . . . . . . . . . 153 . . . . . . . . . . . . . . . . . . . . . Parts Self-Destructed 193 | . . . . . . . . . . . . . . . . . . 68 53 4 . 68 . . . . . . . . . . . . Prevented . | . . . . . . . . . . . . . . . . . . . . . . . . . . . . . . . . . . . Kills | -11 -10 -10 -9 -9 -9 -8 -8 -8 -8 -8 -7 -7 -7 -7 -6 -6 -6 -6 -6 -6 -6 -5 -5 -5 -5 -5 -4 -4 -3 -3 -2 -2 -2 -1 ------- Run | Scr Mat Min Mat Min Exi Min Mat Gar Mat Gar Fac Gar Fac Gar Fac Gar Fac Low Low Zio Dee Pro Fac Gar Fac Gar Fac Gar Res Gar Res Gar Qua Acc Combat Hostiles Destroyed 583 | 2 19 1 33 2 4 10 38 34 21 9 57 17 7 22 17 22 19 17 13 3 26 15 3 33 3 11 16 23 8 17 . 32 17 12 Melee 24 | . . . . . . . . . 1 . . . . . . 1 1 . . 1 13 . . 3 1 1 . . 1 1 . . . . Guns 526 | 2 15 1 29 2 1 10 38 34 20 9 55 17 7 22 17 21 14 17 13 2 13 15 3 29 2 10 16 23 6 15 . 31 17 . Cannons 10 | . . . . . . . . . . . . . . . . . . . . . . . . . . . . . . . . . . 10 AOE 19 | . 4 . 4 . 3 . . . . . 2 . . . . . 4 . . . . . . . . . . . 1 . . . . 1 Classes Destroyed 33 | 1 7 1 3 . 2 1 1 . 3 . 2 . . . 1 2 . 1 . 2 3 . . . . . . . . . . . 3 . Worker 11 | . 3 . 1 . . . 1 . 2 . 2 . . . . . 1 . . . . . 1 . . . . . . . . . . . Builder 12 | . . . 1 . . . 2 . 1 . 2 . . . . . 1 . . . . . 3 . . . 1 . 1 . . . . . Tunneler 1 | . . . . . . 1 . . . . . . . . . . . . . . . . . . . . . . . . . . . . Hauler 20 | . 2 . 5 . . . 5 . 2 . . . . . 1 . 1 . . . . . . . . . 2 . 1 . . . . 1 Recycler 8 | . 2 . . 1 . 1 . . . . 2 . . . . . 1 . . . . . . . . . . . . . . . 1 . Carrier 2 | . . . . . . . . . 1 . . . . . . . . . . . . . . . . . . . . . . . . 1 Mechanic 6 | . . . 1 . . . . . . . 1 . . . 1 . 1 . . . . . . . . . . . . . . . 2 . Operator 8 | . 1 . 3 . . . 2 . . . 1 . . . 1 . . . . . . . . . . . . . . . . . . . Turret 1 | . . . . . 1 . . . . . . . . . . . . . . . . . . . . . . . . . . . . . Watcher 11 | . 3 . 3 . . . . . 2 . 1 . . . 1 . . . . . . . . . . . . . . . . . . 1 Swarmer 130 | . 3 . 12 2 . 7 7 15 . 2 6 6 1 8 1 3 . 1 2 . . 4 . 14 . . . 10 2 1 . 19 4 . Cutter 4 | . . . . . . . . . . . . . . . . 3 . . . . . . . . . 1 . . . . . . . . Saboteur 1 | . . . . . . . . . . . . . . . . . . . . . . . . . . . . . . . . . 1 . Grunt 200 | . 16 . 13 . . 3 21 13 12 4 25 4 3 8 9 7 7 5 5 . . . . 6 2 3 6 10 . 4 . 3 6 5 Brawler 18 | . . . . . . . . . 1 1 8 . . . 1 . 1 2 1 . . . . 1 . . . . . 2 . . . . Duelist 24 | . . . . . . . . . 3 2 3 . . . . 2 1 4 2 . . . . 4 . . . 1 . 1 . . 1 . Protector 6 | . . . . . . . . . . . 1 . . 1 . 1 . . . . . 2 . . . 1 . . . . . . . . Researcher 2 | . . . . . . . . . . . . . . . . . . . . . . . . . . . . . . . . . 2 . Sentry 72 | . . . 8 . . . 7 5 4 . 7 4 2 3 3 2 2 1 . . . 3 . 2 1 3 2 . 2 2 . 7 . 2 Demolisher 11 | 2 . . . . . . . . . . . . . 1 . 1 1 . . . . 4 . . . 1 . . . . . . . 1 Specialist 3 | . . . . . . . . . . . . . . . . 2 . . . . . . . . . 1 . . . . . . . . Hunter 44 | . . . . . . . 3 1 1 . 3 1 1 1 2 . 4 2 . . . 2 2 4 . 1 4 2 2 6 . 2 . . Programmer 25 | . . . . . . . . . . . 5 2 . . . 1 2 1 . . . . 1 . . . 3 . 2 . . . 4 4 Heavy 2 | . . . . . . . . . . . . . . . 1 . . . . . . . . . . . 1 . . . . . . . Behemoth 5 | . . . . . . . . . . . . . . . . . . 1 . . . . . 2 . . . . . 1 . 1 . . Alpha 7 1 | . . . . . . . . . . . . . . . . . . . . . . . . . . . . . . . . . 1 . Zionite 34 | . . . . . 1 . . . . . . . . . . . . . . 33 . . . . . . . . . . . . . . Z-Technician 5 | . . . . . . . . . . . . . . . . . . . . . 5 . . . . . . . . . . . . . Z-Light 9 | . . . . . . . . . . . . . . . . . . . . . 9 . . . . . . . . . . . . . Tinkerer 1 | . . . . . . . . . . . . . . . . . . . . 1 . . . . . . . . . . . . . . Assembler 2 | . . . . . . . . . . . . . . . . . . . . . 2 . . . . . . . . . . . . . Assembled 8 | . . 1 . . 6 . . . . . . . . . . . 1 . . . . . . . . . . . . . . . . . Golem 17 | . . . . . . . . . . . . . . . . . . . . . 17 . . . . . . . . . . . . . Wasp 3 | . . . . . . . . . . . . . . . . . . . 3 . . . . . . . . . . . . . . . Thug 1 | . . . . . . . . . . . . . . . . . . . 1 . . . . . . . . . . . . . . . Savage 1 | . . . . . . . . . . . . . . . . . . . . 1 . . . . . . . . . . . . . . Marauder 1 | . . . . . . . . . . . . . . . . . . . . 1 . . . . . . . . . . . . . . Mutant 1 | . . . . . . . . . . . . . . . . . . . . 1 . . . . . . . . . . . . . . Best Kill Streak 21 | 1 4 1 8 2 3 5 7 7 5 3 21 5 4 6 6 13 4 8 4 12 5 4 7 5 2 3 5 13 5 8 . 14 7 5 Combat Bots Only 19 | 1 4 1 6 2 3 4 6 7 4 3 19 5 4 6 4 13 4 8 4 1 5 4 3 5 2 3 5 13 4 8 . 14 5 4 Max Kills in Single Turn 4 | 1 2 1 4 2 3 2 2 2 2 1 3 2 2 2 2 1 2 2 1 2 2 1 2 2 1 1 2 2 2 2 . 2 2 2 Gunslinging 1 | . . . 1 1 . . . 1 . . 1 . 1 1 . . 1 1 . 1 1 . . 1 . . . . . 1 . 1 . . Exploded 2 | . 2 . 2 . 2 . . . . . 2 . . . . . 2 . . . . . . . . . . . 1 . . . . 1 Melee 1 | . . . . . . . . . 1 . . . . . . 1 1 . . 1 1 . . 1 1 1 . . 1 1 . . . . Uniques/NPCs Destroyed 5 | . . . . . 4 . . . . . . . . . . . . . . 1 . . . . . . . . . . . . . . 8R-AWN (-9/Exiles) EX-HEX (-9/Exiles) EX-BIN (-9/Exiles) EX-DEC (-9/Exiles) Imprinter (-6/Zion) Combat | -11 -10 -10 -9 -9 -9 -8 -8 -8 -8 -8 -7 -7 -7 -7 -6 -6 -6 -6 -6 -6 -6 -5 -5 -5 -5 -5 -4 -4 -3 -3 -2 -2 -2 -1 -------- Run | Scr Mat Min Mat Min Exi Min Mat Gar Mat Gar Fac Gar Fac Gar Fac Gar Fac Low Low Zio Dee Pro Fac Gar Fac Gar Fac Gar Res Gar Res Gar Qua Acc Damage Taken 21899 | 399 575 32 1233 . 919 265 877 489 232 113 1799 884 145 899 1008 1546 785 585 201 577 1004 602 105 892 100 215 518 561 355 567 . 1135 1865 417 Core 13983 | 336 415 25 738 . 592 195 552 295 151 66 1181 573 94 555 657 1010 427 383 115 361 653 377 64 484 55 107 303 324 191 341 . 710 1331 322 Absorbed by Shields 11631 | . . . . . 335 107 339 200 91 45 698 367 56 345 364 650 428 532 190 551 831 436 39 330 106 223 540 580 375 591 . 1052 796 434 Redirected to Core 12519 | 219 317 25 642 . 592 167 476 257 131 54 1094 503 94 514 594 867 408 346 115 342 585 368 64 443 55 107 266 304 156 294 . 664 1236 220 Redirected to Shielding 27 | . . . . . . . 27 . . . . . . . . . . . . . . . . . . . . . . . . . . . Regen/Repaired (Parts) 1163 | . 108 . 19 . . . 111 . . . . . . . . . 739 . . . . . . . . . . . . . . . . 186 Core Remaining (%) 79 | 44 . 88 . . . 50 . . . 100 . . . 100 . . . . . . . 100 . . . 100 . 97 . 100 . . 15 . Volleys Fired 1700 | 12 61 2 105 3 59 26 108 72 43 21 143 52 11 47 55 54 45 58 33 69 60 38 11 88 20 26 63 51 27 47 . 81 93 16 Largest 3 | 2 3 3 3 2 3 3 3 3 2 2 2 2 2 2 2 2 2 2 2 2 2 2 2 2 2 2 2 2 2 2 . 2 2 1 Hottest 300 | 90 90 60 69 46 69 76 83 83 60 60 60 60 60 60 60 60 60 60 60 60 60 60 60 60 60 60 90 60 60 60 . 90 300 300 Shots Fired 3402 | 24 140 6 214 7 118 70 304 145 86 42 279 104 22 94 110 104 91 114 66 126 110 76 22 167 33 50 126 102 54 94 . 149 137 16 Gun 3334 | 24 140 6 208 7 112 70 304 145 86 42 274 104 22 94 110 104 91 114 66 122 107 76 22 167 26 48 126 102 54 94 . 149 118 . Cannon 18 | . . . . . . . . . . . . . . . . . . . . . . . . . . . . . . . . . 2 16 Launcher 12 | . . . 6 . 6 . . . . . . . . . . . . . . . . . . . . . . . . . . . . . Special 38 | . . . . . . . . . . . 5 . . . . . . . . 4 3 . . . 7 2 . . . . . . 17 . Kinetic 3201 | . 98 6 208 7 112 70 304 145 86 42 274 104 22 94 110 104 91 114 66 122 107 76 22 167 26 48 121 102 54 94 . 117 88 . Thermal 51 | 12 21 . . . . . . . . . . . . . . . . . . . . . . . . . . . . . . . 2 16 Explosive 12 | . . . 6 . 6 . . . . . . . . . . . . . . . . . . . . . . . . . . . . . Electromagnetic 33 | 12 21 . . . . . . . . . . . . . . . . . . . . . . . . . . . . . . . . . Phasic 67 | . . . . . . . . . . . . . . . . . . . . . . . . . . . 5 . . . . 32 30 . Robot Hit Streak 34 | 6 16 15 20 5 34 8 26 15 16 9 30 19 12 27 9 8 12 33 10 19 10 5 5 11 10 12 16 14 12 25 . 14 28 7 Robot Miss Streak 8 | 3 6 1 4 3 3 6 3 3 2 2 3 3 2 2 5 6 3 3 5 5 8 4 2 6 4 3 3 2 4 5 . 5 8 1 Penetration Max 4 | . . . . . . 2 2 2 2 1 2 1 1 1 1 1 2 1 1 1 1 1 1 1 1 . 1 2 1 1 . 2 2 4 Secondary Targets 90 | . 2 . 4 1 . 4 7 4 1 1 7 2 1 4 4 3 1 3 4 5 2 1 . 9 . . 1 5 . 4 . 6 4 . Max Gunslinging Chain 1 | . 1 . 1 1 . 1 1 1 1 1 1 1 1 1 1 1 1 1 1 1 1 1 . 1 . . 1 1 . 1 . 1 1 . Shots Hit Robots 2539 | 15 90 5 146 5 106 39 228 91 69 31 204 69 18 69 74 69 63 92 44 89 181 52 15 121 19 34 85 80 41 73 . 108 101 13 Core Hits 1250 | 5 51 2 61 3 29 16 84 52 41 15 109 34 8 31 40 32 39 34 25 42 112 27 10 60 6 18 49 45 17 40 . 59 46 8 Critical Kills 381 | . . . . . 1 4 12 19 15 4 44 15 7 18 18 15 12 12 12 22 17 13 3 23 1 8 16 14 6 13 . 16 16 5 Critical Parts Destroyed 592 | . 1 . . . 7 5 34 31 25 8 73 21 8 23 27 23 21 29 14 25 12 6 4 34 5 6 19 26 15 20 . 29 27 14 Critical Strikes 1030 | . 4 . 1 . 10 9 46 50 40 12 120 36 15 41 45 38 33 42 26 50 52 20 7 59 7 14 38 40 22 35 . 52 46 20 Burn 2 | . 2 . . . . . . . . . . . . . . . . . . . . . . . . . . . . . . . . . Destroy 998 | . 1 . 1 . 10 9 46 50 39 12 120 36 15 41 45 38 32 42 26 50 35 19 7 58 6 14 38 40 22 35 . 47 44 20 Corrupt 1 | . 1 . . . . . . . . . . . . . . . . . . . . . . . . . . . . . . . . . Smash 2 | . . . . . . . . . 1 . . . . . . . 1 . . . . . . . . . . . . . . . . . Impale 21 | . . . . . . . . . . . . . . . . . . . . . 17 1 . 1 1 . . . . . . 1 . . Intensify 6 | . . . . . . . . . . . . . . . . . . . . . . . . . . . . . . . . 4 2 . Melee Attacks 325 | . . . . . 6 . . 16 10 5 3 4 2 15 . 11 6 1 1 7 138 11 2 29 1 7 7 3 5 8 . 14 3 10 Impact 73 | . . . . . . . . 16 10 5 3 4 2 15 . 11 6 1 . . . . . . . . . . . . . . . . Slashing 1 | . . . . . . . . . . . . . . . . . . . 1 . . . . . . . . . . . . . . . Piercing 245 | . . . . . . . . . . . . . . . . . . . . 7 138 11 2 29 1 7 7 3 5 8 . 14 3 10 Sneak Attacks 21 | . . . . . 6 . . . 2 . 1 . . . . . 2 . . . 5 . . 1 . . 1 . 1 . . . 1 1 Combat Hostiles 1 | . . . . . . . . . . . . . . . . . . . . . . . . 1 . . . . . . . . . . Follow-up Attacks . | . . . . . . . . . . . . . . . . . . . . . . . . . . . . . . . . . . . Damage Inflicted 63617 | 172 1359 67 2838 79 2061 741 3797 2417 1832 646 5178 1403 384 1307 1612 1470 2379 1584 1085 1729 7640 1395 497 2597 339 620 1901 1651 1347 1189 . 2665 2997 4639 Guns 45484 | 172 1202 67 2276 79 1481 741 3716 2104 1426 646 4812 1403 384 1307 1469 1386 1394 1584 983 1563 1241 821 304 2155 266 574 1731 1651 727 1151 . 2432 2236 . Cannons 5040 | . . . . . . . . . . . . . . . . . . . . . . . . . . . . . . . . . 650 4390 Explosions 3088 | . 157 . 562 . 580 . 81 . . . 262 . . . 143 . 498 . . . . . 193 . . . 59 . 404 . . . . 149 Melee 9953 | . . . . . . . . 313 395 . 104 . . . . 84 446 . 102 166 6399 574 . 442 73 46 111 . 216 38 . 233 111 100 Ramming 52 | . . . . . . . . . 11 . . . . . . . 41 . . . . . . . . . . . . . . . . . Kinetic 43164 | . 803 67 2276 79 1481 741 3716 2104 1426 646 4812 1403 384 1307 1469 1386 1394 1584 983 1563 1241 821 304 2155 266 574 1566 1651 727 1151 . 1541 1543 . Thermal 6109 | 99 333 . . . . . 81 . . . . . . . 87 . 320 . . . . . . . . . . . . . . . 650 4539 Explosive 2235 | . . . 562 . 580 . . . . . 262 . . . 56 . 178 . . . . . 193 . . . . . 404 . . . . . Electromagnetic 355 | 73 223 . . . . . . . . . . . . . . . . . . . . . . . . . 59 . . . . . . . Impact 1342 | . . . . . . . . 313 395 . 104 . . . . 84 446 . . . . . . . . . . . . . . . . . Slashing 102 | . . . . . . . . . . . . . . . . . . . 102 . . . . . . . . . . . . . . . Piercing 8509 | . . . . . . . . . . . . . . . . . . . . 166 6399 574 . 442 73 46 111 . 216 38 . 233 111 100 Phasic 1749 | . . . . . . . . . . . . . . . . . . . . . . . . . . . 165 . . . . 891 693 . Highest Corruption 7 | . 1 1 3 3 3 . . . 2 . 1 3 . . . . 5 . . . . . . . 1 1 1 . 7 . . . 6 . Average Corruption 2 | . 1 1 2 3 2 . . . 1 . 1 2 . . . . 1 . . . . . . . 1 1 1 . 4 . . . 2 . Corruption Purged 30 | . . . . . 3 . . . 2 . 1 4 . . . . 6 . . . . . . . . 1 1 . 7 . . . 5 . Corruption Blocked 40 | . . . . . . . . . . . . . . . . . . . . . . . . . . . . . . . . . 40 . Effects 79 | . 11 3 3 19 31 . . . 1 . . 1 . . . . 2 . . . . . . . . . . . 3 . . . 5 . Message Errors 14 | . 3 . 1 2 7 . . . 1 . . . . . . . . . . . . . . . . . . . . . . . . . Matter Fused 11 | . 1 1 1 4 3 . . . . . . . . . . . . . . . . . . . . . . . . . . . 1 . Heat Flow Errors 11 | . 1 . . 4 4 . . . . . . 1 . . . . . . . . . . . . . . . . . . . . 1 . Energy Discharges 10 | . 2 1 . 3 4 . . . . . . . . . . . . . . . . . . . . . . . . . . . . . Parts Rejected 1 | . . . . . . . . . . . . . . . . . . . . . . . . . . . . . . . . . 1 . Data Loss (minor) 19 | . 3 . . 5 5 . . . . . . . . . . . 1 . . . . . . . . . . . 3 . . . 2 . Data Loss (major) 5 | . . 1 . . 4 . . . . . . . . . . . . . . . . . . . . . . . . . . . . . Misfires 5 | . 1 . 1 1 1 . . . . . . . . . . . 1 . . . . . . . . . . . . . . . . . Alerts 1 | . . . . . 1 . . . . . . . . . . . . . . . . . . . . . . . . . . . . . Weapon Failures 2 | . . . . . 2 . . . . . . . . . . . . . . . . . . . . . . . . . . . . . Overload Shots . | . . . . . . . . . . . . . . . . . . . . . . . . . . . . . . . . . . . Overflow Damage 3245 | . . . 49 . 39 . 16 6 121 . 72 . . . 6 . 312 . . 7 748 45 32 8 . . 28 . 127 . . . 150 1479 Projectiles 1629 | . . . . . . . . . . . . . . . . . . . . . . . . . . . . . . . . . 150 1479 Explosions 355 | . . . 49 . 39 . 16 . . . . . . . 6 . 86 . . . . . 32 . . . . . 127 . . . . . Melee 1261 | . . . . . . . . 6 121 . 72 . . . . . 226 . . 7 748 45 . 8 . . 28 . . . . . . . Knockbacks 7 | . . . . . . . . 3 2 . 1 . . . . 1 . . . . . . . . . . . . . . . . . . Impact 7 | . . . . . . . . 3 2 . 1 . . . . 1 . . . . . . . . . . . . . . . . . . Kinetic . | . . . . . . . . . . . . . . . . . . . . . . . . . . . . . . . . . . . Secondary . | . . . . . . . . . . . . . . . . . . . . . . . . . . . . . . . . . . . Self-Inflicted Damage 554 | . 88 . 60 . . . . . . . . . . . . . 268 . . . . . . . . . 19 . . . . . . 119 Shots 9 | . 2 . 2 . . . . . . . . . . . . . 3 . . . . . . . . . 1 . . . . . . 1 Rammed 2 | . . . . . . . . . 1 . . . . . . . 1 . . . . . . . . . . . . . . . . . Targets Rammed 3 | . . . . . . . . . 1 . . . . . . . 2 . . . . . . . . . . . . . . . . . Kicked . | . . . . . . . . . . . . . . . . . . . . . . . . . . . . . . . . . . . Crushed 1 | . . . . . . . . . . . . . . . . . 1 . . . . . . . . . . . . . . . . . Highest Temperature 544 | 312 219 12 69 280 245 336 48 12 1 1 222 216 52 79 81 60 25 12 20 4 302 . . 15 . . 40 25 . 5 . 197 241 544 Average Temperature 64 | 150 47 7 13 119 65 185 12 1 1 1 92 65 19 31 26 21 8 5 7 4 122 . . 6 . . 19 16 . 5 . 78 123 175 Received Heat Transfer 3653 | . 282 . 414 . . 66 234 114 86 42 414 166 36 140 202 369 170 63 56 29 183 . 19 100 8 53 13 94 12 35 . 99 122 32 Effects 10 | . . . . . . 1 . . . . . . . . . . . . . . 3 . . . . . . . . . . . . 6 Energy Bleed 3 | . . . . . . . . . . . . . . . . . . . . . . . . . . . . . . . . . . 3 Interference 5 | . . . . . . . . . . . . . . . . . . . . . 3 . . . . . . . . . . . . 2 Short Circuit 1 | . . . . . . 1 . . . . . . . . . . . . . . . . . . . . . . . . . . . . Damage (core) 1 | . . . . . . . . . . . . . . . . . . . . . . . . . . . . . . . . . . 1 Siege Activations . | . . . . . . . . . . . . . . . . . . . . . . . . . . . . . . . . . . . Robots Corrupted . | . . . . . . . . . . . . . . . . . . . . . . . . . . . . . . . . . . . Combat Hostiles . | . . . . . . . . . . . . . . . . . . . . . . . . . . . . . . . . . . . Parts Fried 5 | 1 . . . . . . . . 3 . 1 . . . . . . . . . . . . . . . . . . . . . . . Impact Corruptions 13 | . . . . . . . . 1 4 . 3 . . . . . 5 . . . . . . . . . . . . . . . . . Robots Melted 1 | . . . . . . . . . . . . . . . . . . . . . . . . . . . . . . . . . . 1 Combat Hostiles 1 | . . . . . . . . . . . . . . . . . . . . . . . . . . . . . . . . . . 1 Parts Melted 21 | . 2 . . 2 . . 1 . . . 3 2 . . 2 . . . 2 3 . . . . . . . 4 . . . . . . Heat Transferred 1562 | 296 816 . . . . . 100 . . . . . . . 50 . 200 . . . . . . . . . . . . . . . . 100 Parts Sabotaged . | . . . . . . . . . . . . . . . . . . . . . . . . . . . . . . . . . . . Parts Stolen . | . . . . . . . . . . . . . . . . . . . . . . . . . . . . . . . . . . . Parts Stripped . | . . . . . . . . . . . . . . . . . . . . . . . . . . . . . . . . . . . Power Chain Reactions 2 | . 2 . . . . . . . . . . . . . . . . . . . . . . . . . . . . . . . . . Missiles Intercepted . | . . . . . . . . . . . . . . . . . . . . . . . . . . . . . . . . . . . Alert | -11 -10 -10 -9 -9 -9 -8 -8 -8 -8 -8 -7 -7 -7 -7 -6 -6 -6 -6 -6 -6 -6 -5 -5 -5 -5 -5 -4 -4 -3 -3 -2 -2 -2 -1 ------- Run | Scr Mat Min Mat Min Exi Min Mat Gar Mat Gar Fac Gar Fac Gar Fac Gar Fac Low Low Zio Dee Pro Fac Gar Fac Gar Fac Gar Res Gar Res Gar Qua Acc Peak Influence 2141 | 50 560 186 954 426 . 282 553 1478 1014 645 1738 1816 1121 1548 1348 1692 1081 . . . . . 376 1708 1043 944 842 1312 1113 1291 756 2141 1999 1463 Initial 1216 | . 32 171 72 372 . . 31 182 720 338 338 1216 953 654 812 943 888 . . . . . 63 249 896 352 495 589 738 696 726 567 1203 1199 Average 747 | 2 370 171 682 313 . 133 254 869 825 505 812 1597 934 1200 949 1490 930 . . . . . 109 1000 902 620 548 1010 950 938 750 1483 1518 1269 Maximum Alert Level 5 | . 2 . 3 2 . 1 2 4 3 2 5 5 4 4 4 5 3 . . . . . 1 5 3 3 3 4 4 4 3 5 5 4 Low Security (%) 17 | 100 15 100 7 16 . 80 30 . . . . . . . . . . . . . . . 87 . . . . . . . . . . . Level 1 12 | . 22 . 3 69 . 19 60 13 . 17 4 . . . . . . . . . . . 12 5 . 18 2 . . . . . . . Level 2 16 | . 62 . 39 14 . . 9 14 13 82 27 . . 8 . . 8 . . . . . . 14 7 44 87 21 . 2 . 9 . . Level 3 31 | . . . 49 . . . . 43 86 . 51 . 97 22 84 5 91 . . . . . . 40 92 36 9 28 92 76 100 14 . . Level 4 16 | . . . . . . . . 27 . . 12 35 2 69 15 52 . . . . . . . 33 . . . 50 7 20 . 30 53 100 Level 5 6 | . . . . . . . . . . . 3 64 . . . 41 . . . . . . . 6 . . . . . . . 45 46 . High Security . | . . . . . . . . . . . . . . . . . . . . . . . . . . . . . . . . . . . Max Security . | . . . . . . . . . . . . . . . . . . . . . . . . . . . . . . . . . . . Squads Dispatched 88 | . 7 . 6 . . . 6 . 4 . 21 . 2 . 7 . 6 . 1 . . . 5 . 3 . 4 . 1 . . . 10 5 Investigation 25 | . 6 . 3 . . . 3 . 1 . 4 . . . . . 2 . . . . . 2 . 1 . 1 . . . . . 1 1 Extermination 12 | . . . . . . . . . . . 2 . . . . . 2 . . . . . 1 . 1 . 2 . 1 . . . 2 1 Reinforcement 21 | . 1 . 3 . . . 3 . 1 . 4 . 1 . 2 . 1 . . . . . 1 . 1 . 1 . . . . . 1 1 Assault 13 | . . . . . . . . . 2 . 3 . 1 . 1 . 1 . 1 . . . . . . . . . . . . . 3 1 Garrison 17 | . . . . . . . . . . . 8 . . . 4 . . . . . . . 1 . . . . . . . . . 3 1 Intercept . | . . . . . . . . . . . . . . . . . . . . . . . . . . . . . . . . . . . Searches Triggered . | . . . . . . . . . . . . . . . . . . . . . . . . . . . . . . . . . . . Construction Impeded 5 | . . . . . . . 1 . . . 1 . . . . . 1 . . . . . 1 . . . . . . . . . . 1 Haulers Reinforced 2 | . . . . . . . . . . . 1 . . . 1 . . . . . . . . . . . . . . . . . . . Active Scanning Responses . | . . . . . . . . . . . . . . . . . . . . . . . . . . . . . . . . . . . Cargo Convoy Interrupts . | . . . . . . . . . . . . . . . . . . . . . . . . . . . . . . . . . . . Stealth | -11 -10 -10 -9 -9 -9 -8 -8 -8 -8 -8 -7 -7 -7 -7 -6 -6 -6 -6 -6 -6 -6 -5 -5 -5 -5 -5 -4 -4 -3 -3 -2 -2 -2 -1 --------- Run | Scr Mat Min Mat Min Exi Min Mat Gar Mat Gar Fac Gar Fac Gar Fac Gar Fac Low Low Zio Dee Pro Fac Gar Fac Gar Fac Gar Res Gar Res Gar Qua Acc Distress Signals 24 | . 1 . 2 . . . 4 . 3 . . . . . 1 1 2 . . . . 6 2 . . . . . . . . . . 2 Communications Jammed 16 | . . . . . . . . . . . . . . . . . . . . . . . . . 16 . . . . . . . . . Distress Signals 16 | . . . . . . . . . . . . . . . . . . . . . . . . . 16 . . . . . . . . . Times Spotted 1014 | 2 29 4 48 6 32 10 63 38 40 10 86 22 14 38 31 28 33 18 29 39 51 20 6 46 12 14 19 23 14 20 4 78 52 35 Peak Tracking Total 17 | 2 5 10 6 3 7 4 6 6 5 3 9 7 4 6 5 7 4 9 9 4 7 4 4 7 7 4 4 5 4 5 2 14 17 13 Tactical Retreats 128 | . 2 1 1 . 13 . . 12 5 1 7 7 3 13 7 4 . 1 3 . 2 . . 12 1 . 1 3 2 2 . 19 5 1 Traps | -11 -10 -10 -9 -9 -9 -8 -8 -8 -8 -8 -7 -7 -7 -7 -6 -6 -6 -6 -6 -6 -6 -5 -5 -5 -5 -5 -4 -4 -3 -3 -2 -2 -2 -1 ------- Run | Scr Mat Min Mat Min Exi Min Mat Gar Mat Gar Fac Gar Fac Gar Fac Gar Fac Low Low Zio Dee Pro Fac Gar Fac Gar Fac Gar Res Gar Res Gar Qua Acc Traps Triggered 49 | . 6 . 3 . . . 1 4 2 . 1 1 . . 2 . 2 . . . . . 3 5 . 3 1 6 1 1 . 7 . . Indirectly . | . . . . . . . . . . . . . . . . . . . . . . . . . . . . . . . . . . . Trap Hack Attempts . | . . . . . . . . . . . . . . . . . . . . . . . . . . . . . . . . . . . Triggered . | . . . . . . . . . . . . . . . . . . . . . . . . . . . . . . . . . . . Disarmed . | . . . . . . . . . . . . . . . . . . . . . . . . . . . . . . . . . . . Reprogrammed . | . . . . . . . . . . . . . . . . . . . . . . . . . . . . . . . . . . . Reused . | . . . . . . . . . . . . . . . . . . . . . . . . . . . . . . . . . . . Traps Extracted . | . . . . . . . . . . . . . . . . . . . . . . . . . . . . . . . . . . . Installed . | . . . . . . . . . . . . . . . . . . . . . . . . . . . . . . . . . . . Triggered . | . . . . . . . . . . . . . . . . . . . . . . . . . . . . . . . . . . . Machines | -11 -10 -10 -9 -9 -9 -8 -8 -8 -8 -8 -7 -7 -7 -7 -6 -6 -6 -6 -6 -6 -6 -5 -5 -5 -5 -5 -4 -4 -3 -3 -2 -2 -2 -1 ---------- Run | Scr Mat Min Mat Min Exi Min Mat Gar Mat Gar Fac Gar Fac Gar Fac Gar Fac Low Low Zio Dee Pro Fac Gar Fac Gar Fac Gar Res Gar Res Gar Qua Acc Machines Disabled 106 | . 2 . 3 . 8 2 7 6 3 2 5 . . 2 4 5 9 1 1 1 3 2 4 9 . 3 5 3 1 3 . 2 7 3 Max in Single Turn 5 | . 1 . 1 . 2 1 2 1 1 1 2 . . 1 2 1 5 1 1 1 1 1 2 2 . 1 2 1 1 1 . 1 1 1 Garrison Access 3 | . . . . . . . . . . . . . . . 1 . 1 . . . . . . . . . . . . . . . 1 . Garrison Relay 27 | . . . . . . . . 4 . 2 . . . 2 . 4 . . . . . . . 5 . 3 . 3 . 2 . 2 . . Phase Generator 2 | . . . . . . . . 1 . . . . . . . . . . . . . . . 1 . . . . . . . . . . Energy Cycler 1 | . . . . . . . . . . . . . . . . . . . . . . . . . . . . . . . . . . 1 Machines Sabotaged . | . . . . . . . . . . . . . . . . . . . . . . . . . . . . . . . . . . . Garrisons Compromised . | . . . . . . . . . . . . . . . . . . . . . . . . . . . . . . . . . . . Overloaded Fab Kills . | . . . . . . . . . . . . . . . . . . . . . . . . . . . . . . . . . . . Hacking | -11 -10 -10 -9 -9 -9 -8 -8 -8 -8 -8 -7 -7 -7 -7 -6 -6 -6 -6 -6 -6 -6 -5 -5 -5 -5 -5 -4 -4 -3 -3 -2 -2 -2 -1 --------- Run | Scr Mat Min Mat Min Exi Min Mat Gar Mat Gar Fac Gar Fac Gar Fac Gar Fac Low Low Zio Dee Pro Fac Gar Fac Gar Fac Gar Res Gar Res Gar Qua Acc Machines Accessed 104 | . 10 . 8 . 2 1 14 . 5 . 12 . 5 . 4 . 9 1 1 . . . 2 . 6 . 7 . 5 . 1 . 8 3 Terminals 56 | . 7 . 3 . . 1 9 . 3 . 8 . 3 . 2 . 4 . . . . . 1 . 3 . 5 . 1 . . . 6 . Fabricators 7 | . . . . . . . . . . . 1 . . . . . 2 . . . . . . . 1 . 1 . 1 . . . . 1 Repair Stations 8 | . 1 . 2 . . . 2 . . . . . . . . . 2 . . . . . . . . . . . . . . . . 1 Recycling Units 6 | . 2 . 2 . . . 1 . . . . . . . . . . . . . . . . . . . . . 1 . . . . . Scanalyzers 9 | . . . 1 . . . 1 . 1 . 1 . 1 . . . . . . . . . . . 1 . . . 1 . . . 1 1 Garrison Access 14 | . . . . . . . 1 . 1 . 2 . 1 . 2 . 1 . . . . . 1 . 1 . 1 . 1 . 1 . 1 . Total Hacks 388 | . 46 . 48 . 5 5 70 . 29 . 47 . 12 . 9 . 22 1 6 . . . 6 . 16 . 29 . 7 . 1 . 22 7 Successful 263 | . 31 . 38 . 5 2 50 . 16 . 27 . 8 . 8 . 15 1 6 . . . 5 . 14 . 14 . 5 . 1 . 12 5 Failed 123 | . 15 . 9 . . 3 19 . 13 . 20 . 4 . 1 . 7 . . . . . 1 . 2 . 15 . 2 . . . 10 2 Catastrophic 14 | . 3 . . . . 1 1 . 2 . 2 . 1 . . . 1 . . . . . . . 1 . 1 . . . . . . 1 Database Lockouts 2 | . . . 1 . . . 1 . . . . . . . . . . . . . . . . . . . . . . . . . . . Manual 168 | . 27 . 27 . 1 5 35 . 18 . 10 . . . 2 . 5 1 . . . . 5 . 7 . 11 . 1 . . . 11 2 Terminals 241 | . 30 . 27 . . 5 55 . 26 . 22 . 6 . 6 . 12 . . . . . 2 . 9 . 25 . 2 . . . 14 . Fabricators 18 | . . . . . . . . . . . 3 . . . . . 5 . . . . . . . 3 . 3 . 1 . . . . 3 Repair Stations 26 | . 10 . 6 . . . 4 . . . . . . . . . 4 . . . . . . . . . . . . . . . . 2 Recycling Units 13 | . 6 . 3 . . . 3 . . . . . . . . . . . . . . . . . . . . . 1 . . . . . Scanalyzers 45 | . . . 12 . . . 3 . 2 . 14 . 5 . . . . . . . . . . . 3 . . . 2 . . . 2 2 Garrison Access 33 | . . . . . . . 5 . 1 . 8 . 1 . 3 . 1 . . . . . 4 . 1 . 1 . 1 . 1 . 6 . Terminal Hacks 108 | . 11 . 11 . 5 2 23 . 9 . 9 . 3 . 3 . 5 1 6 . . . . . 4 . 10 . . . . . 6 . Record 13 | . . . . . 4 . . . . . 1 . . . . . . . 6 . . . . . . . . . . . . . 2 . Part Schematic 15 | . 3 . 2 . . 1 1 . . . . . . . 1 . 1 . . . . . . . . . 6 . . . . . . . Robot Schematic 1 | . 1 . . . . . . . . . . . . . . . . . . . . . . . . . . . . . . . . . Robot Analysis 7 | . 2 . 2 . . 1 1 . . . . . . . . . . . . . . . . . . . 1 . . . . . . . Prototype ID Bank 12 | . 2 . 4 . . . 3 . . . 2 . 1 . . . . . . . . . . . . . . . . . . . . . Open Door 3 | . . . . . . . . . . . . . . . . . . 1 . . . . . . . . . . . . . . 2 . Open DSF 7 | . . . . . . . . . . . 3 . 1 . 1 . 1 . . . . . . . 1 . . . . . . . . . Level Access Points 2 | . . . . . . . 1 . . . . . . . . . . . . . . . . . . . . . . . . . 1 . Branch Access Points 5 | . . . 1 . . . 1 . 1 . 1 . . . . . 1 . . . . . . . . . . . . . . . . . Machine Index 2 | . . . . . . . 1 . . . . . . . . . 1 . . . . . . . . . . . . . . . . . Terminal Index 4 | . 1 . . . . . . . 1 . . . . . . . . . . . . . . . 1 . . . . . . . 1 . Repair Station Index 1 | . . . 1 . . . . . . . . . . . . . . . . . . . . . . . . . . . . . . . Garrison Index 1 | . . . . . . . . . . . . . . . . . . . . . . . . . . . 1 . . . . . . . Alert Level 1 | . . . . . . . 1 . . . . . . . . . . . . . . . . . . . . . . . . . . . Unreport Threat 12 | . . . . . . . 4 . 5 . . . 1 . . . 1 . . . . . . . . . 1 . . . . . . . Locate Traps 10 | . 2 . . . . . 4 . 1 . 2 . . . . . . . . . . . . . . . 1 . . . . . . . Assault Status 1 | . . . . . . . . . . . . . . . 1 . . . . . . . . . . . . . . . . . . . Recall Reinforcements 1 | . . . . . . . 1 . . . . . . . . . . . . . . . . . . . . . . . . . . . Hauler Manifests 3 | . . . 1 . . . 1 . . . . . . . . . . . . . . . . . 1 . . . . . . . . . Zone Layout 6 | . . . . . . . 4 . 1 . . . . . . . . . . . . . . . 1 . . . . . . . . . EX-Prototype ID Bank 1 | . . . . . 1 . . . . . . . . . . . . . . . . . . . . . . . . . . . . . Fabricator Hacks 12 | . . . . . . . . . . . 2 . . . . . 4 . . . . . . . 2 . 1 . 1 . . . . 2 Load Schematic 6 | . . . . . . . . . . . 1 . . . . . 2 . . . . . . . 1 . 1 . . . . . . 1 Build 6 | . . . . . . . . . . . 1 . . . . . 2 . . . . . . . 1 . . . 1 . . . . 1 Repair Station Hacks 22 | . 8 . 4 . . . 4 . . . . . . . . . 4 . . . . . . . . . . . . . . . . 2 Scan Component 11 | . 4 . 2 . . . 2 . . . . . . . . . 2 . . . . . . . . . . . . . . . . 1 Repair 11 | . 4 . 2 . . . 2 . . . . . . . . . 2 . . . . . . . . . . . . . . . . 1 Recycling Unit Hacks 7 | . 4 . 1 . . . 2 . . . . . . . . . . . . . . . . . . . . . . . . . . . Process 1 | . 1 . . . . . . . . . . . . . . . . . . . . . . . . . . . . . . . . . Report Inventory 3 | . 2 . . . . . 1 . . . . . . . . . . . . . . . . . . . . . . . . . . . Retrieve Matter 3 | . 1 . 1 . . . 1 . . . . . . . . . . . . . . . . . . . . . . . . . . . Scanalyzer 33 | . . . 11 . . . 2 . . . 11 . 4 . . . . . . . . . . . 3 . . . 2 . . . . . Insert Component 15 | . . . 5 . . . 1 . . . 5 . 2 . . . . . . . . . . . 1 . . . 1 . . . . . Analyze 18 | . . . 6 . . . 1 . . . 6 . 2 . . . . . . . . . . . 2 . . . 1 . . . . . Garrison Access Hacks 15 | . . . . . . . 1 . 1 . 2 . 1 . 3 . 1 . . . . . 1 . 1 . 1 . 1 . 1 . 1 . Unlock Access 13 | . . . . . . . 1 . 1 . 2 . 1 . 2 . . . . . . . 1 . 1 . 1 . 1 . 1 . 1 . Seal Access 2 | . . . . . . . . . . . . . . . 1 . 1 . . . . . . . . . . . . . . . . . Unauthorized Hacks 66 | . 8 . 11 . . . 18 . 6 . 3 . . . 2 . 1 . . . . . 4 . 4 . 2 . 1 . . . 5 1 Terminals 45 | . 6 . 9 . . . 13 . 6 . 1 . . . 2 . 1 . . . . . 1 . 3 . 2 . . . . . 1 . Track 20 | . 4 . 3 . . . 6 . 2 . 1 . . . 1 . 1 . . . . . . . 1 . . . . . . . 1 . Assimilate 1 | . . . . . . . 1 . . . . . . . . . . . . . . . . . . . . . . . . . . . Botnet 18 | . 2 . 3 . . . 4 . 3 . . . . . 1 . . . . . . . 1 . 2 . 2 . . . . . . . Disrupt 3 | . . . 2 . . . 1 . . . . . . . . . . . . . . . . . . . . . . . . . . . Operators 3 | . . . 1 . . . 1 . 1 . . . . . . . . . . . . . . . . . . . . . . . . . Fabricators 1 | . . . . . . . . . . . . . . . . . . . . . . . . . 1 . . . . . . . . . Prioritize 1 | . . . . . . . . . . . . . . . . . . . . . . . . . 1 . . . . . . . . . Repair Stations . | . . . . . . . . . . . . . . . . . . . . . . . . . . . . . . . . . . . Recycling Units 6 | . 2 . 2 . . . 1 . . . . . . . . . . . . . . . . . . . . . 1 . . . . . Mask 1 | . . . . . . . . . . . . . . . . . . . . . . . . . . . . . 1 . . . . . Tunnel 5 | . 2 . 2 . . . 1 . . . . . . . . . . . . . . . . . . . . . . . . . . . Scanalyzers 2 | . . . . . . . . . . . . . . . . . . . . . . . . . . . . . . . . . 1 1 Researchers 2 | . . . . . . . . . . . . . . . . . . . . . . . . . . . . . . . . . 1 1 Garrison Access 12 | . . . . . . . 4 . . . 2 . . . . . . . . . . . 3 . . . . . . . . . 3 . Broadcast 3 | . . . . . . . 1 . . . . . . . . . . . . . . . 1 . . . . . . . . . 1 . Reprogram 4 | . . . . . . . 1 . . . 1 . . . . . . . . . . . 1 . . . . . . . . . 1 . Intercept 1 | . . . . . . . 1 . . . . . . . . . . . . . . . . . . . . . . . . . . . Watchers 4 | . . . . . . . 1 . . . 1 . . . . . . . . . . . 1 . . . . . . . . . 1 . Data Cores Recovered 2 | . 1 . . . . . . . . . . . . . 1 . . . . . . . . . . . . . . . . . . . Used 2 | . 1 . . . . . . . . . . . . . 1 . . . . . . . . . . . . . . . . . . . Hacking Detections 73 | . 9 . 3 . . 1 13 . 4 . 8 . 3 . 2 . 7 . . . . . 2 . 5 . 7 . 2 . . . 4 3 Full Trace Events 14 | . 4 . . . . . 2 . . . 3 . . . . . 2 . . . . . . . 1 . 1 . . . . . . 1 Feedback Events 1 | . . . . . . . . . . . . . . . . . . . . . . . . . . . 1 . . . . . . . Corruption 1 | . . . . . . . . . . . . . . . . . . . . . . . . . . . 1 . . . . . . . Feedback Blocked . | . . . . . . . . . . . . . . . . . . . . . . . . . . . . . . . . . . . Robot Schematics Acquired 9 | . 1 . . . . . . . . . . . . . . . . . . 4 . . . . . . . . . . . . 4 . Robots Built 2 | . . . . . . . . . . . . . . . . . 1 . . . . . . . . . . . 1 . . . . . Authchips . | . . . . . . . . . . . . . . . . . . . . . . . . . . . . . . . . . . . Time 143 | . . . . . . . . . . . . . . . . . 81 . . . . . . . . . . . 62 . . . . . Total Robot Build Rating 8 | . . . . . . . . . . . . . . . . . 1 . . . . . . . . . . . 7 . . . . . Part Schematics Acquired 83 | . 3 . 7 . . 1 2 . . . 3 . 2 . 1 . 1 . . 14 . . . . 1 . 6 . 1 . . . 41 . Parts Built 6 | . . . . . . . . . . . 2 . . . . . 2 . . . . . . . 1 . . . . . . . . 1 Authchips . | . . . . . . . . . . . . . . . . . . . . . . . . . . . . . . . . . . . Time 194 | . . . . . . . . . . . 36 . . . . . 58 . . . . . . . 26 . . . . . . . . 74 Total Part Build Rating 35 | . . . . . . . . . . . 6 . . . . . 14 . . . . . . . 6 . . . . . . . . 9 Parts Repaired 11 | . 4 . 2 . . . 2 . . . . . . . . . 2 . . . . . . . . . . . . . . . . 1 Time 381 | . 134 . 54 . . . 70 . . . . . . . . . 69 . . . . . . . . . . . . . . . . 54 Parts Recycled . | . . . . . . . . . . . . . . . . . . . . . . . . . . . . . . . . . . . Recycled Matter 141 | . 141 . . . . . . . . . . . . . . . . . . . . . . . . . . . . . . . . . Retrieved Matter 550 | . 282 . 204 . . . 64 . . . . . . . . . . . . . . . . . . . . . . . . . . . Retrieved Components . | . . . . . . . . . . . . . . . . . . . . . . . . . . . . . . . . . . . Parts Scanalyzed 14 | . . . 5 . . . 1 . . . 4 . 2 . . . . . . . . . . . 1 . . . 1 . . . . . Part Schematics Acquired 13 | . . . 5 . . . 1 . . . 3 . 2 . . . . . . . . . . . 1 . . . 1 . . . . . Parts Damaged 3 | . . . 1 . . . . . . . 2 . . . . . . . . . . . . . . . . . . . . . . . Bothacking | -11 -10 -10 -9 -9 -9 -8 -8 -8 -8 -8 -7 -7 -7 -7 -6 -6 -6 -6 -6 -6 -6 -5 -5 -5 -5 -5 -4 -4 -3 -3 -2 -2 -2 -1 ------------ Run | Scr Mat Min Mat Min Exi Min Mat Gar Mat Gar Fac Gar Fac Gar Fac Gar Fac Low Low Zio Dee Pro Fac Gar Fac Gar Fac Gar Res Gar Res Gar Qua Acc Used RIF Installer 10 | . . . . . . . . 1 . 1 . 1 . 1 . 1 . . . . . . . 1 . 1 . 1 . 1 . 1 . . Coupler Efficiency 3 | . . . . . . . . . . 1 . . . . . . . . . . . . . . . 1 . . . 1 . . . . Signal Jammer 1 | . . . . . . . . . . . . . . . . . . . . . . . . 1 . . . . . . . . . . Robot Detection 1 | . . . . . . . . . . . . . . . . 1 . . . . . . . . . . . . . . . . . . Watcher Feeds 1 | . . . . . . . . . . . . . . 1 . . . . . . . . . . . . . . . . . . . . Patrol Navigation 1 | . . . . . . . . . . . . 1 . . . . . . . . . . . . . . . . . . . . . . Program Shield 1 | . . . . . . . . . . . . . . . . . . . . . . . . . . . . 1 . . . . . . Autoassimilate 1 | . . . . . . . . . . . . . . . . . . . . . . . . . . . . . . . . 1 . . Robots Hacked 14 | . . . . . 6 . . . . . 3 . . . . . . . . . . . . . 1 . . . . . . . 4 . Non-combat 8 | . . . . . 3 . . . . . 3 . . . . . . . . . . . . . 1 . . . . . . . 1 . Combat 6 | . . . . . 3 . . . . . . . . . . . . . . . . . . . . . . . . . . . 3 . Robot Hacks Applied 32 | . . . . . 6 . . . . . 4 . . . . . . . . . . . . . 6 . . . . . . . 16 . parse_system 8 | . . . . . 6 . . . . . . . . . . . . . . . . . . . . . . . . . . . 2 . purge_threat 4 | . . . . . . . . . . . . . . . . . . . . . . . . . 4 . . . . . . . . . locate_traps 1 | . . . . . . . . . . . . . . . . . . . . . . . . . 1 . . . . . . . . . block_reporting 1 | . . . . . . . . . . . . . . . . . . . . . . . . . 1 . . . . . . . . . mark_security 1 | . . . . . . . . . . . 1 . . . . . . . . . . . . . . . . . . . . . . . disable_scanner 2 | . . . . . . . . . . . . . . . . . . . . . . . . . . . . . . . . . 2 . locate_prototypes 1 | . . . . . . . . . . . . . . . . . . . . . . . . . . . . . . . . . 1 . report_schematics 3 | . . . . . . . . . . . . . . . . . . . . . . . . . . . . . . . . . 3 . report_analyses 5 | . . . . . . . . . . . . . . . . . . . . . . . . . . . . . . . . . 5 . link_fov 1 | . . . . . . . . . . . 1 . . . . . . . . . . . . . . . . . . . . . . . streamctrl_low 2 | . . . . . . . . . . . 2 . . . . . . . . . . . . . . . . . . . . . . . formatsys_low 3 | . . . . . . . . . . . . . . . . . . . . . . . . . . . . . . . . . 3 . Relay Couplers Released 48 | . . . . . . . . 7 . 3 2 . . 4 . 8 . . . . . . . 8 . 5 . 5 . 3 . 3 . . Machine Destruction 46 | . . . . . . . . 7 . 3 . . . 4 . 8 . . . . . . . 8 . 5 . 5 . 3 . 3 . . Programmers 2 | . . . . . . . . . . . 2 . . . . . . . . . . . . . . . . . . . . . . . Attached 6 | . . . . . . . . . . 1 1 . . . . 1 . . . . . . . . 1 . . 1 . . . 1 . . Fabnet Peak Effective % . | . . . . . . . . . . . . . . . . . . . . . . . . . . . . . . . . . . . Robots Rewired 12 | . . . . . . . . . . . . . . . . . . 2 2 . . . . . . 8 . . . . . . . . Allies Hacked 3 | . . . . . . . . . . . . . . . . . . . . . . . . . . . 1 . . . . . 2 . Hacks Repelled . | . . . . . . . . . . . . . . . . . . . . . . . . . . . . . . . . . . . Allies | -11 -10 -10 -9 -9 -9 -8 -8 -8 -8 -8 -7 -7 -7 -7 -6 -6 -6 -6 -6 -6 -6 -5 -5 -5 -5 -5 -4 -4 -3 -3 -2 -2 -2 -1 -------- Run | Scr Mat Min Mat Min Exi Min Mat Gar Mat Gar Fac Gar Fac Gar Fac Gar Fac Low Low Zio Dee Pro Fac Gar Fac Gar Fac Gar Res Gar Res Gar Qua Acc Total Allies 55 | . . . . 3 . . 1 . . . 5 . . . . . 1 2 4 . . . 3 . . 8 . . 1 . . . 4 23 Largest Group 11 | . . . . 2 2 . 1 . . . 3 . . . . . 1 2 4 1 . . 3 . . 7 1 . 1 . . . 4 11 Highest-Rated Group 360 | . . . . 62 62 . 10 . . . 48 . . . . . 14 58 120 29 . . 87 . . 360 29 . 91 . . . 207 149 Highest-Rated Ally 91 | . . . . 31 31 . 10 . . . 22 . . . . . 14 29 31 29 . . 29 . . 68 29 . 91 . . . 64 15 Total Orders 6 | . . . . . . . . . . . 1 . . . . . 1 . 1 . . . . . . . 2 . . . . . 1 . ROAM 1 | . . . . . . . . . . . . . . . . . . . . . . . . . . . 1 . . . . . . . FOLLOW 1 | . . . . . . . . . . . . . . . . . . . . . . . . . . . 1 . . . . . . . GUARD 1 | . . . . . . . . . . . . . . . . . . . 1 . . . . . . . . . . . . . . . AID 3 | . . . . . . . . . . . 1 . . . . . 1 . . . . . . . . . . . . . . . 1 . Ally Attacks 413 | . . . . 17 . . . . . . 53 . . . . . . . 86 74 . . 24 . . 58 4 . . . . . 7 90 Total Damage 6642 | . . . . 191 . . . . . . 538 . . . . . . . 1316 978 . . 325 . . 1388 64 . . . . . 338 1504 Kills 53 | . . . . 4 . . . . . . 3 . . . . . . . 11 11 . . 3 . . 13 1 . . . . . 3 4 Allies Corrupted 1 | . . . . . . . . . . . . . . . . . . . 1 . . . . . . . . . . . . . . . Allies Melted . | . . . . . . . . . . . . . . . . . . . . . . . . . . . . . . . . . . . Intel | -11 -10 -10 -9 -9 -9 -8 -8 -8 -8 -8 -7 -7 -7 -7 -6 -6 -6 -6 -6 -6 -6 -5 -5 -5 -5 -5 -4 -4 -3 -3 -2 -2 -2 -1 ------- Run | Scr Mat Min Mat Min Exi Min Mat Gar Mat Gar Fac Gar Fac Gar Fac Gar Fac Low Low Zio Dee Pro Fac Gar Fac Gar Fac Gar Res Gar Res Gar Qua Acc Robot Analysis Total 7 | . 2 . 2 . . 1 1 . . . . . . . . . . . . . . . . . . . 1 . . . . . . . Derelict Logs Recovered 7 | . . 1 . 1 . . . . . . . . . . . . . 1 1 . . 3 . . . . . . . . . . . . Drone Launches . | . . . . . . . . . . . . . . . . . . . . . . . . . . . . . . . . . . . Drone Recoveries . | . . . . . . . . . . . . . . . . . . . . . . . . . . . . . . . . . . . Exploration | -11 -10 -10 -9 -9 -9 -8 -8 -8 -8 -8 -7 -7 -7 -7 -6 -6 -6 -6 -6 -6 -6 -5 -5 -5 -5 -5 -4 -4 -3 -3 -2 -2 -2 -1 ------------- Run | Scr Mat Min Mat Min Exi Min Mat Gar Mat Gar Fac Gar Fac Gar Fac Gar Fac Low Low Zio Dee Pro Fac Gar Fac Gar Fac Gar Res Gar Res Gar Qua Acc Turns Passed 39571 | 2537 1540 202 1465 954 1881 665 2523 1668 959 455 2292 799 798 1067 627 1634 1704 1091 1700 1639 4667 716 275 927 296 583 632 549 467 355 85 728 606 485 Spaces Moved 22028 | 223 778 178 792 552 989 236 1075 870 462 243 1066 401 423 556 286 665 842 538 954 502 1572 995 367 946 484 705 626 621 662 388 126 578 664 663 Core 5 | 4 . . . . . . . . . . . . . . . . . . . . 1 . . . . . . . . . . . . . Treads 11886 | 3 7 . 166 552 989 236 1075 870 462 243 1066 401 423 556 286 665 842 538 954 502 1050 . . . . . . . . . . . . . Legs . | . . . . . . . . . . . . . . . . . . . . . . . . . . . . . . . . . . . Wheels 1791 | 216 771 178 626 . . . . . . . . . . . . . . . . . . . . . . . . . . . . . . . Hover . | . . . . . . . . . . . . . . . . . . . . . . . . . . . . . . . . . . . Flight 8346 | . . . . . . . . . . . . . . . . . . . . . 521 995 367 946 484 705 626 621 662 388 126 578 664 663 Fastest Speed 42 | 50 80 110 95 166 166 166 162 162 158 158 148 155 155 155 155 158 158 160 160 160 50 50 50 50 50 50 50 50 50 50 50 50 42 42 Average Speed 116 | 86 104 110 115 167 166 244 189 162 160 158 157 155 155 155 155 158 161 160 160 160 128 50 50 50 50 53 50 50 50 50 50 50 45 42 Slowest Speed 550 | 160 240 110 250 170 166 245 245 162 162 158 232 155 155 155 158 158 162 160 160 160 550 50 50 50 50 150 50 50 50 50 50 50 50 42 Overloaded Moves . | . . . . . . . . . . . . . . . . . . . . . . . . . . . . . . . . . . . Propulsion Burnouts . | . . . . . . . . . . . . . . . . . . . . . . . . . . . . . . . . . . . Robots Hopped 20 | . . . . . . . . . . . . . . . . . . . . . . . 2 1 5 . 1 1 2 . 1 . 6 1 Cave-ins Triggered . | . . . . . . . . . . . . . . . . . . . . . . . . . . . . . . . . . . . Exploration Rate (%) 56 | 30 90 45 60 89 92 77 80 87 46 47 35 71 13 77 14 87 30 65 89 52 93 88 11 89 14 78 20 76 21 64 6 70 50 19 Regions Visited 34 Branch Regions 10 Pre-discovered Areas 8 | . 2 1 2 . 1 . 1 . . . . . . . . . . . 1 . . . . . . . . . . . . . . . Known Exits Taken 17 | . . . 1 . . . 1 . 1 . 1 . 1 . 1 . 1 1 1 1 . 1 1 . 1 . 1 . 1 . 1 . 1 . Unknown Exits Taken 7 | 1 1 1 . 1 1 1 . . . . . . . . . . . . . . 1 . . . . . . . . . . . . . Scrap Searched 11 | . . 1 . 1 . 1 . . . . . . . . . . . 2 4 . . 2 . . . . . . . . . . . . Spaces Dug 20 | . . . . . . . . . . . . . 2 3 . 1 . . . . 1 . 2 3 . . 5 . . . . . . 3 Terrain Destroyed 1069 | . 4 . 30 . 27 15 100 124 45 12 45 28 4 15 75 27 93 9 8 . 6 6 54 130 1 9 13 26 10 25 . 13 26 89 Melee 20 | . . . . . . . . . . . . . 2 3 . 1 . . . . 1 . 2 3 . . 5 . . . . . . 3 Projectile 413 | . . . . . . 15 41 27 45 10 16 23 2 11 9 23 5 3 4 . 3 5 . 9 . 8 3 21 2 20 . 10 25 73 AOE 548 | . 4 . 30 . 27 . 57 94 . . 15 . . . 61 . 83 . . . . . 50 110 . . . . 4 . . . . 13 Terrain Rammed . | . . . . . . . . . . . . . . . . . . . . . . . . . . . . . . . . . . . Walls Destroyed . | . . . . . . . . . . . . . . . . . . . . . . . . . . . . . . . . . . . Machines Disabled . | . . . . . . . . . . . . . . . . . . . . . . . . . . . . . . . . . . . Actions | -11 -10 -10 -9 -9 -9 -8 -8 -8 -8 -8 -7 -7 -7 -7 -6 -6 -6 -6 -6 -6 -6 -5 -5 -5 -5 -5 -4 -4 -3 -3 -2 -2 -2 -1 --------- Run | Scr Mat Min Mat Min Exi Min Mat Gar Mat Gar Fac Gar Fac Gar Fac Gar Fac Low Low Zio Dee Pro Fac Gar Fac Gar Fac Gar Res Gar Res Gar Qua Acc Total 33206 | 2539 1375 179 1144 572 1147 291 1414 1015 607 280 1477 506 548 677 400 1164 1119 696 1087 1246 3867 1142 438 1247 515 869 852 788 752 475 146 903 882 847 Wait 7169 | 2295 474 . 153 6 43 10 135 16 63 1 150 . 91 20 15 406 156 8 55 619 1946 55 32 25 4 34 108 3 21 1 21 15 47 141 Move 21945 | 222 777 177 791 551 988 235 1074 868 462 241 1065 399 423 554 285 663 841 537 953 501 1571 994 362 941 474 701 624 616 658 386 123 574 653 661 Hop 18 | . . . . . . . . . . . . . . . . . . . . . . . 2 1 5 . 1 1 2 . 1 . 4 1 Pick Up 92 | 2 5 . 7 1 13 . 2 5 1 . 3 . 2 . 1 1 2 5 3 5 13 . 1 3 3 . . . 2 . . 5 6 1 Fast Attach 147 | 7 10 . 7 2 9 2 8 1 . 2 6 1 2 . 3 3 9 2 3 5 22 6 1 4 . 4 1 . 5 1 . 5 11 5 Attach 31 | . 1 . 2 . 1 . . 1 . 1 5 . 1 . . . . 4 1 4 1 . . . 2 . . . 1 . 1 . 5 . Detach 12 | . . . 1 . 1 . . . . . 5 . 1 . . . . . . . . . . . 1 . . . . . . . 3 . Swap 72 | . 2 . 7 . 1 . 4 1 5 . 4 1 1 . 1 1 7 2 2 1 6 . 2 1 1 3 4 1 5 2 . 1 6 . Drop 203 | . 6 . 14 1 22 2 8 7 3 2 8 . 3 . 3 2 10 5 6 10 39 6 3 7 2 4 . . 6 . . 7 11 6 Fire 1700 | 12 61 2 105 3 59 26 108 72 43 21 143 52 11 47 55 54 45 58 33 69 60 38 11 88 20 26 63 51 27 47 . 81 93 16 Melee 325 | . . . . . 6 . . 16 10 5 3 4 2 15 . 11 6 1 1 7 138 11 2 29 1 7 7 3 5 8 . 14 3 10 Ram . | . . . . . . . . . . . . . . . . . . . . . . . . . . . . . . . . . . . Kick . | . . . . . . . . . . . . . . . . . . . . . . . . . . . . . . . . . . . Crush 3 | . . . . . . . . . 1 . . . . . . . 2 . . . . . . . . . . . . . . . . . Escape Stasis 428 | . . . . . . . . . . . . . . . . . . . . . . . 18 98 . 56 18 91 . . . 147 . . Rewire 56 | . . . . . . . . . . . . 1 . . . . . 25 9 . 3 . . . . 18 . . . . . . . . Trap . | . . . . . . . . . . . . . . . . . . . . . . . . . . . . . . . . . . . Miscellaneous 1005 | 1 39 . 57 8 4 16 75 28 19 7 85 48 11 41 37 23 41 49 21 25 68 32 4 50 2 16 26 22 20 30 . 54 40 6 Route ------- -11/Scrapyard -10/Materials (discovered 4 exits: *Mat x3 / [*Min]) -10/Mines -9/Materials (discovered 4 exits: *Mat x2 / *Min x2) -9/Mines (discovered 2 exits: *Mat / *Exi) -9/Exiles (discovered 2 exits: *Min x2) -8/Mines -8/Materials (discovered 4 exits: *Fac x3 / Gar) -8/Garrison (discovered 3 exits: *Mat x3) -8/Materials (discovered 2 exits: *Fac / Gar) -8/Garrison -7/Factory (discovered 8 exits: *Fac x2 / *Sto x2 / Low x2 / Gar / Gar) -7/Garrison (discovered 2 exits: *Fac x2) -7/Factory -7/Garrison (discovered 3 exits: *Fac x3) -6/Factory -6/Garrison (discovered 3 exits: *Fac x3) -6/Factory (discovered 3 exits: *Fac / *Low x2) -6/Lower Caves -6/Lower Caves (discovered 2 exits: *Fac / *Zio) -6/Zion (discovered 2 exits: *Dee / *Pro) -6/Deep Caves -5/Proximity Caves -5/Factory (discovered 3 exits: [*Upp x2] / Gar) -5/Garrison (discovered 3 exits: *Fac x3) -5/Factory (discovered 4 exits: *Fac x2 / [*Upp] / Gar) -5/Garrison (discovered 3 exits: *Fac x3) -4/Factory (discovered 3 exits: *Res x2 / Gar) -4/Garrison (discovered 3 exits: *Res x3) -3/Research (discovered 5 exits: *Res x2 / [*Arm] / [*Tes] / Gar) -3/Garrison (discovered 2 exits: *Res x2) -2/Research -2/Garrison (discovered 2 exits: *Qua x2) -2/Quarantine -1/Access History --------- Turn | Location | Event 1 | -11/Scrapyard | Upgraded with Propulsion slot (x1) 1 | -11/Scrapyard | Upgraded with Utility slot (x1) 1 | -11/Scrapyard | Upgraded with Weapon slot (x1) 8 | -11/Scrapyard | Discovered new exit (range 16) 2271 | -11/Scrapyard | Assembled infested the area 2433 | -11/Scrapyard | Core integrity fell below 50% 2538 | -11/Scrapyard | Entered Materials 2539 | -10/Materials | Build established: Mutant 2787 | -10/Materials | Discovered new exit (range 17) 2912 | -10/Materials | Discovered new exit (range 17) 2951 | -10/Materials | Reached level 2 3107 | -10/Materials | Upgraded with Utility slot (x1) 3107 | -10/Materials | Upgraded with Weapon slot (x1) 3449 | -10/Materials | Build established: Tank 3681 | -10/Materials | Discovered new exit (range 17) 3711 | -10/Materials | Reached level 3 3711 | -10/Materials | Upgraded with Utility slot (x1) 3898 | -10/Materials | Discovered new exit (range 8) 3951 | -10/Materials | Repaired Corrupted Mni. Grenade Launcher 3990 | -10/Materials | Repaired Imp. Light Armor Plating 4018 | -10/Materials | Repaired Assault Rifle 4045 | -10/Materials | Repaired Lgt. Treads 4078 | -10/Materials | Entered Mines 4133 | -10/Mines | Learned location of Zion (-6) 4169 | -10/Mines | Discovered new exit (range 16) 4232 | -10/Mines | Assembled infested the area 4280 | -10/Mines | Entered Materials 4282 | -9/Materials | Reached level 4 4302 | -9/Materials | Upgraded with Utility slot (x1) 4436 | -9/Materials | Reached level 5 4587 | -9/Materials | Reached level 6 4612 | -9/Materials | Upgraded with Utility slot (x1) 4677 | -9/Materials | Discovered new exit (range 17) 4922 | -9/Materials | Build established: Hacker-Mutant 4978 | -9/Materials | Identified exit to Mines 4990 | -9/Materials | Central database locked down 5016 | -9/Materials | Reached level 7 5192 | -9/Materials | Upgraded with Utility slot (x1) 5313 | -9/Materials | Discovered new exit (range 11) 5421 | -9/Materials | Repaired Broken Salvage Targeting Computer 5482 | -9/Materials | Repaired Med. Armor Plating 5505 | -9/Materials | Reached level 8 5745 | -9/Materials | Entered Mines 5813 | -9/Mines | Deemed a non-threat by the Exiles lab entrance 5813 | -9/Mines | Discovered new exit (range 5) 5968 | -9/Mines | Learned Materials stockpile data 5983 | -9/Mines | Discovered new exit (range 8) 6050 | -9/Mines | Escorted by a lone wolf Derelict 6228 | -9/Mines | Upgraded with Propulsion slot (x1) 6231 | -9/Mines | Upgraded with Power slot (x1) 6699 | -9/Mines | Entered Exiles 6699 | -9/Exiles | Accompanied by 2 allies 6721 | -9/Exiles | Discovered new exit (range 16) 6729 | -9/Exiles | Led the pair of lost Derelicts to a safe place 6741 | -9/Exiles | Met 8R-AWN 6800 | -9/Exiles | Met EX-HEX 6861 | -9/Exiles | Met EX-DEC 6958 | -9/Exiles | Met EX-BIN 6992 | -9/Exiles | Aligned with FarCom system 6993 | -9/Exiles | Given EX-Vault access code 7033 | -9/Exiles | Opened EX-Vault 7083 | -9/Exiles | Warned to stay clear of 0b10 Research branches 7815 | -9/Exiles | Attacked by the Exiles 7890 | -9/Exiles | Core integrity fell below 50% 7920 | -9/Exiles | Destroyed 8R-AWN 7940 | -9/Exiles | Found Exp. Targeting Computer 7965 | -9/Exiles | Found 8R-AWN's Boregun 7975 | -9/Exiles | Found 8R-AWN's Boregun 8136 | -9/Exiles | Destroyed EX-HEX 8137 | -9/Exiles | Destroyed EX-BIN 8169 | -9/Exiles | Found System Purifier 8204 | -9/Exiles | Destroyed EX-DEC 8228 | -9/Exiles | Build established: Scavenger-Mutant 8434 | -9/Exiles | Found AS-neutralizer No. 17b 8566 | -9/Exiles | Discovered new exit (range 10) 8580 | -9/Exiles | Entered Mines 8582 | -8/Mines | Reached level 9 8598 | -8/Mines | Core integrity fell below 20% 8862 | -8/Mines | Reached level 10 8927 | -8/Mines | Discovered new exit (range 4) 9074 | -8/Mines | Build established: Scavenger-Gunner 9245 | -8/Mines | Entered Materials 9247 | -8/Materials | Reached level 11 9288 | -8/Materials | Core integrity fell below 50% 9500 | -8/Materials | Upgraded with Utility slot (x1) 9890 | -8/Materials | Reached level 12 9974 | -8/Materials | Repaired Shield Generator 10154 | -8/Materials | Discovered new exit (range 4) 10521 | -8/Materials | Repaired Hvy. Armor Plating 10587 | -8/Materials | Discovered new exit (range 18) 10587 | -8/Materials | Central database locked down 10967 | -8/Materials | Identified exit to Garrison 11158 | -8/Materials | Identified exit to Factory 11349 | -8/Materials | Reached level 13 11381 | -8/Materials | Upgraded with Propulsion slot (x1) 11768 | -8/Materials | Entered Garrison 11874 | -8/Garrison | Triggered checkpoint 11916 | -8/Garrison | Garrison Relay disabled 12008 | -8/Garrison | Triggered checkpoint 12011 | -8/Garrison | Triggered checkpoint 12013 | -8/Garrison | Triggered checkpoint 12135 | -8/Garrison | Build established: Scavenger-Assassin 12247 | -8/Garrison | Triggered checkpoint 12278 | -8/Garrison | Discovered new exit (range 13) 12411 | -8/Garrison | Discovered new exit (range 13) 12443 | -8/Garrison | Installed Relay Interface Framework 12518 | -8/Garrison | Triggered checkpoint 12571 | -8/Garrison | Garrison Relay disabled 12744 | -8/Garrison | Garrison Relay disabled 12822 | -8/Garrison | Triggered checkpoint 12832 | -8/Garrison | Triggered checkpoint 12843 | -8/Garrison | Reached level 14 12866 | -8/Garrison | Triggered checkpoint 12985 | -8/Garrison | Triggered checkpoint 13022 | -8/Garrison | Destroyed 7 combat bots 13035 | -8/Garrison | Discovered new exit (range 15) 13081 | -8/Garrison | Build established: Scavenger-Mutant 13234 | -8/Garrison | Phase Generator disabled 13350 | -8/Garrison | Triggered checkpoint 13355 | -8/Garrison | Garrison Relay disabled 13436 | -8/Garrison | Entered Materials 13701 | -8/Materials | Discovered exit to Factory (range 8) 14236 | -8/Materials | First assault squad dispatched 14395 | -8/Materials | Identified exit to Garrison 14395 | -8/Materials | Entered Garrison 14438 | -8/Garrison | Triggered checkpoint 14473 | -8/Garrison | Garrison Relay disabled 14486 | -8/Garrison | Triggered checkpoint 14530 | -8/Garrison | Triggered checkpoint 14600 | -8/Garrison | Discovered exit to Factory (range 16) 14639 | -8/Garrison | Expanded RIF knowledge: Coupler Efficiency 14680 | -8/Garrison | Triggered checkpoint 14742 | -8/Garrison | Reached level 15 14762 | -8/Garrison | Garrison Relay disabled 14827 | -8/Garrison | Upgraded with Utility slot (x1) 14850 | -8/Garrison | Entered Factory 14876 | -7/Factory | Identified exit to Garrison 14983 | -7/Factory | Garrison activated, responded to threat 15074 | -7/Factory | Discovered new exit (range 11) 15076 | -7/Factory | Discovered new exit (range 16) 15323 | -7/Factory | Reached level 16 15492 | -7/Factory | Garrison activated, responded to threat 15665 | -7/Factory | Identified exit to Storage 15665 | -7/Factory | Identified exit to Lower Caves 16050 | -7/Factory | First assault squad dispatched 16621 | -7/Factory | Fabricated Adv. Treads? 16868 | -7/Factory | Discovered new exit (range 4) 16944 | -7/Factory | Garrison activated, responded to threat 16964 | -7/Factory | Reached level 17 17120 | -7/Factory | Destroyed 19 combat bots 17140 | -7/Factory | Identified exit to Garrison 17142 | -7/Factory | Entered Garrison 17212 | -7/Garrison | Triggered checkpoint 17394 | -7/Garrison | Triggered checkpoint 17407 | -7/Garrison | Triggered checkpoint 17419 | -7/Garrison | Upgraded with Utility slot (x1) 17604 | -7/Garrison | Discovered new exit (range 11) 17690 | -7/Garrison | Triggered checkpoint 17819 | -7/Garrison | Discovered new exit (range 10) 17844 | -7/Garrison | Expanded RIF knowledge: Patrol Navigation 17910 | -7/Garrison | Triggered checkpoint 17941 | -7/Garrison | Entered Factory 18341 | -7/Factory | First assault squad dispatched 18442 | -7/Factory | Reached level 18 18739 | -7/Factory | Identified exit to Garrison 18739 | -7/Factory | Entered Garrison 18788 | -7/Garrison | Triggered checkpoint 18829 | -7/Garrison | Garrison Relay disabled 18962 | -7/Garrison | Triggered checkpoint 18998 | -7/Garrison | Triggered checkpoint 19152 | -7/Garrison | Triggered checkpoint 19173 | -7/Garrison | Discovered new exit (range 13) 19384 | -7/Garrison | Triggered checkpoint 19442 | -7/Garrison | Triggered checkpoint 19491 | -7/Garrison | Discovered new exit (range 15) 19615 | -7/Garrison | Discovered new exit (range 9) 19629 | -7/Garrison | Identified exit to Factory 19640 | -7/Garrison | Expanded RIF knowledge: Watcher Feeds 19688 | -7/Garrison | Triggered checkpoint 19741 | -7/Garrison | Garrison Relay disabled 19806 | -7/Garrison | Entered Factory 19945 | -6/Factory | Reached level 19 20033 | -6/Factory | Identified exit to Garrison 20156 | -6/Factory | First assault squad dispatched 20374 | -6/Factory | Garrison activated, responded to threat 20425 | -6/Factory | Identified exit to Garrison 20433 | -6/Factory | Entered Garrison 20482 | -6/Garrison | Triggered checkpoint 20487 | -6/Garrison | Triggered checkpoint 20515 | -6/Garrison | Triggered checkpoint 20522 | -6/Garrison | Triggered checkpoint 20533 | -6/Garrison | Core integrity fell below 50% 20556 | -6/Garrison | Core integrity fell below 20% 20569 | -6/Garrison | Reached level 20 20590 | -6/Garrison | Destroyed 13 combat bots 20635 | -6/Garrison | Upgraded with Utility slot (x1) 20707 | -6/Garrison | Discovered new exit (range 8) 20718 | -6/Garrison | Identified exit to Factory 20730 | -6/Garrison | Expanded RIF knowledge: Robot Detection 20794 | -6/Garrison | Triggered checkpoint 20807 | -6/Garrison | Garrison Relay disabled 20936 | -6/Garrison | Triggered checkpoint 20973 | -6/Garrison | Garrison Relay disabled 21013 | -6/Garrison | Discovered exit to Factory (range 10) 21160 | -6/Garrison | Triggered checkpoint 21190 | -6/Garrison | Garrison Relay disabled 21350 | -6/Garrison | Triggered checkpoint 21390 | -6/Garrison | Garrison Relay disabled 21460 | -6/Garrison | Discovered exit to Factory (range 16) 22067 | -6/Garrison | Entered Factory 22309 | -6/Factory | Repaired Hrd. Heavy Armor Plating 22406 | -6/Factory | Identified exit to Lower Caves 22567 | -6/Factory | Discovered new exit (range 16) 22944 | -6/Factory | Fabricated Hyb. Antimatter Reactor? 23117 | -6/Factory | First assault squad dispatched 23282 | -6/Factory | Fabricated M-13 Machinist? 23437 | -6/Factory | Assembled infested ambush trap array 23570 | -6/Factory | Repaired Imp. Heavy Armor Plating 23771 | -6/Factory | Entered Lower Caves 23816 | -6/Lower Caves | Reached level 21 23871 | -6/Lower Caves | Identified exit to Lower Caves 23873 | -6/Lower Caves | Upgraded with Power slot (x1) 24104 | -6/Lower Caves | Encountered a Warlord checkpoint 24156 | -6/Lower Caves | Spotted B-75 Beast 24180 | -6/Lower Caves | Destroyed B-75 Beast 24222 | -6/Lower Caves | Acquired the password to a Derelict Tinkerer's latest research 24235 | -6/Lower Caves | Found Prototype Special Weapon 24235 | -6/Lower Caves | Identified Molecular Deconstructor 24605 | -6/Lower Caves | Attracted the attention of an 0b10 outpost 24662 | -6/Lower Caves | Destroyed 8 combat bots 24862 | -6/Lower Caves | Entered another Lower Caves area 24862 | -6/Lower Caves | Accompanied by 2 allies 25090 | -6/Lower Caves | Discovered new exit (range 7) 25098 | -6/Lower Caves | Identified exit to Factory 25215 | -6/Lower Caves | A Commander dispatched an escort 25220 | -6/Lower Caves | Learned 8 Research zone layouts 25220 | -6/Lower Caves | Learned Armory terminal intel 25330 | -6/Lower Caves | Encountered a Warlord checkpoint 25356 | -6/Lower Caves | Attracted the attention of an 0b10 outpost 26196 | -6/Lower Caves | Ambushed by wild Derelicts 26517 | -6/Lower Caves | Discovered new exit (range 5) 26525 | -6/Lower Caves | Identified exit to Zion 26562 | -6/Lower Caves | Entered Zion 26562 | -6/Zion | Accompanied by 1 ally 26664 | -6/Zion | Found Prototype Device 26664 | -6/Zion | Identified Bomb Factory No. 2 26692 | -6/Zion | Discovered new exit (range 14) 26712 | -6/Zion | Found CR-A16's Pointy Stick 26747 | -6/Zion | Identified exit to Proximity Caves 27571 | -6/Zion | RIF detected upon attempting to enter Zion 27571 | -6/Zion | Attacked by Zionites 27571 | -6/Zion | Spotted FL-RQI(B) 27571 | -6/Zion | Spotted 5Q-388(B) 27595 | -6/Zion | Destroyed FL-RQI(B) 27619 | -6/Zion | Allies destroyed 5Q-388(B) 28127 | -6/Zion | Discovered new exit (range 15) 28195 | -6/Zion | Saw the warning signs outside the Deep Caves entrance 28196 | -6/Zion | Identified exit to Deep Caves 28201 | -6/Zion | Entered Deep Caves 28486 | -6/Deep Caves | Build established: Scavenger-Assassin 28633 | -6/Deep Caves | Z-Facility disabled 28667 | -6/Deep Caves | Found Prototype Protection 28667 | -6/Deep Caves | Identified Zio. Weapon Casing 28852 | -6/Deep Caves | Found Prototype Protection 28852 | -6/Deep Caves | Identified Zio. Heavy Carapace 29366 | -6/Deep Caves | Found Surveybot 24 Scanner 29610 | -6/Deep Caves | Discovered new exit (range 16) 30871 | -6/Deep Caves | Spotted as-76454 30875 | -6/Deep Caves | Exposed GOLEM chamber 30915 | -6/Deep Caves | Destroyed as-76454 30943 | -6/Deep Caves | Triggered Deep Caves wall 30943 | -6/Deep Caves | Spotted AS-55503 30959 | -6/Deep Caves | Spotted AS-13082 31066 | -6/Deep Caves | Found GOLEM Unit 31096 | -6/Deep Caves | Destroyed AS-55503 31116 | -6/Deep Caves | Destroyed AS-13082 31557 | -6/Deep Caves | Spotted as-85213 31655 | -6/Deep Caves | Destroyed as-85213 32235 | -6/Deep Caves | Found Flying Fortress v7 32729 | -6/Deep Caves | Build established: Scavenger-Scout 32841 | -6/Deep Caves | Found Surveybot 24 Chip 32868 | -6/Deep Caves | Entered Proximity Caves 32870 | -5/Proximity Caves | Reached level 22 32988 | -5/Proximity Caves | Learned Factory emergency access door positions 33005 | -5/Proximity Caves | Learned Factory stockpile data 33016 | -5/Proximity Caves | Learned Factory security intel 33150 | -5/Proximity Caves | Attracted the attention of an 0b10 checkpoint 33422 | -5/Proximity Caves | Found Prototype Launcher 33422 | -5/Proximity Caves | Identified Scatter Rocket Array 33483 | -5/Proximity Caves | Discovered exit to Factory (range 17) 33584 | -5/Proximity Caves | Entered Factory 33658 | -5/Factory | Discovered new exit (range 12) 33762 | -5/Factory | Identified exit to Garrison 33769 | -5/Factory | Discovered new exit (range 16) 33822 | -5/Factory | Garrison activated, responded to threat 33859 | -5/Factory | Entered Garrison 33861 | -5/Garrison | Reached level 23 33878 | -5/Garrison | Triggered checkpoint 33914 | -5/Garrison | Garrison Relay disabled 33962 | -5/Garrison | Triggered checkpoint 33964 | -5/Garrison | Triggered checkpoint 34085 | -5/Garrison | Discovered new exit (range 10) 34093 | -5/Garrison | Expanded RIF knowledge: Signal Jamming 34118 | -5/Garrison | Triggered checkpoint 34146 | -5/Garrison | Garrison Relay disabled 34174 | -5/Garrison | Triggered checkpoint 34199 | -5/Garrison | Spotted B-75 Beast 34200 | -5/Garrison | Spotted B-75 Beast 34219 | -5/Garrison | Revealed the true nature of CR-A16's Pointy Stick 34219 | -5/Garrison | Destroyed B-75 Beast 34221 | -5/Garrison | Destroyed B-75 Beast 34252 | -5/Garrison | Discovered new exit (range 15) 34266 | -5/Garrison | Triggered checkpoint 34341 | -5/Garrison | Garrison Relay disabled 34406 | -5/Garrison | Triggered checkpoint 34582 | -5/Garrison | Triggered checkpoint 34606 | -5/Garrison | Phase Generator disabled 34608 | -5/Garrison | Discovered new exit (range 18) 34616 | -5/Garrison | Garrison Relay disabled 34642 | -5/Garrison | Triggered checkpoint 34786 | -5/Garrison | Entered Factory 34866 | -5/Factory | Discovered new exit (range 19) 34888 | -5/Factory | Discovered new exit (range 14) 34921 | -5/Factory | Fabricated Imp. Remote Datajack? 35011 | -5/Factory | Reached level 24 35047 | -5/Factory | Discovered new exit (range 20) 35082 | -5/Factory | Identified exit to Garrison 35082 | -5/Factory | Entered Garrison 35230 | -5/Garrison | Triggered checkpoint 35237 | -5/Garrison | Triggered checkpoint 35253 | -5/Garrison | Discovered new exit (range 8) 35332 | -5/Garrison | Triggered checkpoint 35382 | -5/Garrison | Garrison Relay disabled 35474 | -5/Garrison | Triggered checkpoint 35484 | -5/Garrison | Discovered new exit (range 10) 35502 | -5/Garrison | Triggered checkpoint 35508 | -5/Garrison | Triggered checkpoint 35540 | -5/Garrison | Garrison Relay disabled 35548 | -5/Garrison | Build established: Hacker-Scout 35592 | -5/Garrison | Garrison Relay disabled 35598 | -5/Garrison | Triggered checkpoint 35632 | -5/Garrison | Discovered new exit (range 13) 35641 | -5/Garrison | Expanded RIF knowledge: Coupler Efficiency 35665 | -5/Garrison | Entered Factory 35665 | -4/Factory | Accompanied by 1 ally 35693 | -4/Factory | Reached level 25 35952 | -4/Factory | Discovered new exit (range 16) 35972 | -4/Factory | Identified exit to Research 36089 | -4/Factory | Spotted B-86 Titan 36151 | -4/Factory | Discovered exit to Research (range 17) 36297 | -4/Factory | Identified exit to Garrison 36297 | -4/Factory | Entered Garrison 36326 | -4/Garrison | Triggered checkpoint 36332 | -4/Garrison | Garrison Relay disabled 36356 | -4/Garrison | Triggered checkpoint 36389 | -4/Garrison | Discovered exit to Research (range 13) 36414 | -4/Garrison | Garrison Relay disabled 36420 | -4/Garrison | Triggered checkpoint 36467 | -4/Garrison | Triggered checkpoint 36479 | -4/Garrison | Reached level 26 36543 | -4/Garrison | Destroyed 13 combat bots 36566 | -4/Garrison | Triggered checkpoint 36623 | -4/Garrison | Garrison Relay disabled 36645 | -4/Garrison | Discovered exit to Research (range 9) 36674 | -4/Garrison | Triggered checkpoint 36751 | -4/Garrison | Discovered exit to Research (range 9) 36758 | -4/Garrison | Expanded RIF knowledge: Program Shield 36846 | -4/Garrison | Entered Research 36847 | -3/Research | Identified exit to Research 36848 | -3/Research | Reached level 27 36848 | -3/Research | Upgraded with Utility slot (x1) 37046 | -3/Research | Discovered new exit (range 15) 37149 | -3/Research | Fabricated A-27 Freighter? 37158 | -3/Research | Discovered new exit (range 18) 37313 | -3/Research | Identified exit to Garrison 37313 | -3/Research | Entered Garrison 37321 | -3/Garrison | Reached level 28 37459 | -3/Garrison | Garrison Relay disabled 37464 | -3/Garrison | Triggered checkpoint 37473 | -3/Garrison | Spotted B-86 Titan 37473 | -3/Garrison | Triggered checkpoint 37480 | -3/Garrison | Destroyed B-86 Titan 37502 | -3/Garrison | Discovered exit to Research (range 13) 37518 | -3/Garrison | Triggered checkpoint 37533 | -3/Garrison | Garrison Relay disabled 37566 | -3/Garrison | Triggered checkpoint 37594 | -3/Garrison | Triggered checkpoint 37655 | -3/Garrison | Discovered exit to Research (range 13) 37656 | -3/Garrison | Destroyed 8 combat bots 37665 | -3/Garrison | Expanded RIF knowledge: Coupler Efficiency 37668 | -3/Garrison | Entered Research 37670 | -2/Research | Reached level 29 37670 | -2/Research | Reached level 30 37670 | -2/Research | Upgraded with Utility slot (x1) 37752 | -2/Research | Identified exit to Garrison 37753 | -2/Research | Entered Garrison 37808 | -2/Garrison | Triggered checkpoint 37875 | -2/Garrison | Triggered checkpoint 37912 | -2/Garrison | Spotted B-90 Cyclops 37914 | -2/Garrison | Triggered checkpoint 37916 | -2/Garrison | Destroyed B-90 Cyclops 37977 | -2/Garrison | Destroyed 14 combat bots 38086 | -2/Garrison | Reached level 31 38112 | -2/Garrison | Discovered new exit (range 11) 38138 | -2/Garrison | Triggered checkpoint 38152 | -2/Garrison | Garrison Relay disabled 38318 | -2/Garrison | Discovered new exit (range 15) 38329 | -2/Garrison | Expanded RIF knowledge: Autoassimilate 38362 | -2/Garrison | Triggered checkpoint 38374 | -2/Garrison | Garrison Relay disabled 38481 | -2/Garrison | Entered Quarantine 38507 | -2/Quarantine | Spotted Alpha 7 38572 | -2/Quarantine | Garrison activated, responded to threat 38599 | -2/Quarantine | Destroyed Alpha 7 38619 | -2/Quarantine | Identified exit to Garrison 38625 | -2/Quarantine | Build established: Scavenger-Scout 38707 | -2/Quarantine | Found Core Reset Matrix 38707 | -2/Quarantine | Reached level 32 38707 | -2/Quarantine | Used Core Reset Matrix 38711 | -2/Quarantine | Discovered exit to Garrison (range 15) 38711 | -2/Quarantine | Detected hypermatrix surge 38711 | -2/Quarantine | Sensed 14 artifacts in vicinity 38719 | -2/Quarantine | Found Exp. Target Analyzer 38808 | -2/Quarantine | Upgraded with Propulsion slot (x1) 38842 | -2/Quarantine | Met incapacitated Sigix Warrior 38842 | -2/Quarantine | Lockdown squad dispatched 38844 | -2/Quarantine | Acquired the access code to the Sigix quarantine chamber 38845 | -2/Quarantine | Unlocked Sigix quarantine chamber 38942 | -2/Quarantine | Spotted Lightning 38942 | -2/Quarantine | Spotted Lightning 38942 | -2/Quarantine | Spotted Lightning 38966 | -2/Quarantine | Identified exit to Access 38981 | -2/Quarantine | First assault squad dispatched 38986 | -2/Quarantine | Found Subatomic Replicator 39023 | -2/Quarantine | Found Core Cannon 39048 | -2/Quarantine | Reached level 33 39048 | -2/Quarantine | Scanned by Researcher 39051 | -2/Quarantine | Core integrity fell below 50% 39057 | -2/Quarantine | Core integrity fell below 20% 39087 | -2/Quarantine | Entered Access 39088 | -1/Access | Emitted hypermatrix ping 39088 | -1/Access | Core integrity fell below 50% 39088 | -1/Access | Core integrity fell below 20% 39093 | -1/Access | Assembled emerged from beneath the floor 39116 | -1/Access | Assembled emerged from beneath the floor 39199 | -1/Access | Garrison activated, responded to threat 39212 | -1/Access | Fabricated Exp. Biometal Heavy Treads (x1) 39262 | -1/Access | Reached level 34 39299 | -1/Access | Assembled emerged from beneath the floor 39380 | -1/Access | First assault squad dispatched 39417 | -1/Access | Repaired Centrium Medium Armor Plating? 39558 | -1/Access | Energy Cycler disabled 39567 | -1/Access | Spotted B-99 Colossus 39568 | -1/Access | Spotted B-99 Colossus 39572 | -1/Access | Destroyed by B-99 Colossus with Multirail Last Messages --------------- 39558_ W-44 Eye sends out distress signal. 39561_ Wave Collapse Detector explodes. 39561_ W-44 Eye destroyed. 39561_ Recycling Unit disabled. 39561_ Adv. Force Field tumbles out of recycling unit. 39561_ Unknown Special Weapon tumbles out of recycling unit. 39561_ Unknown Energy Cannon tumbles out of recycling unit. 39562_ Slug penetrates Wall. 39562_ Penetrated by Slug. 39562_ Slug penetrates Wall. 39566_ Slug penetrates Recycling Unit. 39567_ Slug penetrates Wall. 39567_ Slug penetrates Recycling Unit. 39567_ Slug penetrates Wall. 39567_ Slug penetrates Recycling Unit. 39568_ Slug penetrates Door. 39568_ Slug penetrates Wall. 39568_ Slug penetrates Door. 39572_ Exp. Power Amplifier blasted off. 39572_ Penetrated by Slug. Map ----- +----------------------------------------------------+ | ????????????? ### # % % ######### | | ????????? ### # [ ######### | | ????????? ### # ######### | | ?????????? ### # ######### | | ????????#### ### # ######### | | ?????? #?### ### # =%! ######### | | ????? ???#?# ? ### # ######### | | ???????####? ######""""""""""########### | | ?????? ?#### # " ########### | | ????? ##?## ? # ############## | | ????????####? # #############? | | ?????#??#?######### # "" ############## | | ???? ?? # # " ] ############## | | ?????? ? # # " ############## | | ???? ? # # " % =############## | | ??? ?? + # " ############## | | ????? ??? ? ; # " | ############?# | | ???? "?T"" # + "! = ###########?## | | ????? ??? """"" # ; ############?# | | ?????#####??####?## ; ? ! ########?###?? | | ????##?####?####### ;#########/##############?? | | ??????#####?##?# ####### #############??? | | ????#?##??#?#### ####### ############???? | | ???#######??#### %####### #########??????? | | ????##?######### #?##### ########?##????? | | ???####?####?### BB BB@####### ##########?????? | | ??????###?#?#### BB BB ####### ####?##????????? | | ?????#####?###?# ###?#?#?###??###?#?????? | | ?????##??##??#?#""""""""""### ?? ######???#????? | | ??????######?###"?""""""""### ???#####???????? | | ???????###?###?#""""""""""?##?? ?##????##?#????? | | ???????#?####?##?""""""??"### ##???#????????? | | ??????###?#?#### ? ### ? ??##???##?#?????? | | ????????####?### ""?"?" ??# ? #####??#??????? | | ????????##??#### " " ?#####???##?#??#????????? | | ?????????? ?### ??"" "? #### #????#????????? | | ????????????##?#??" "??" #?## ?????#?##????????? | | ?????????? ##?# " ?? ###?? ? ?###??#????????? | | ?????????? ?#?## ?""??"? ?#??? ???##??#?????????? | | ?????????????##? ?? ?####??? ????##?????????? | | ??????????????## ? ?? ??######??###????????????? | | ??????????????? ??? ?? ????##?#???#?????????????? | | ?????????????????? ??? ????????????????????????? | | ????????????????????? ? ??#?#??????????????????? | | ????????????????????? ???###???????????????????? | | ?????????????????????????????????????????????????? | | ?????????????????????????????????????????????????? | | ?????????????????????????????????????????????????? | | ?????????????????????????????????????????????????? | | ?????????????????????????????????????????????????? | +----------------------------------------------------+ Best States ------------- Heat Dissipation 105 Energy Generation 67 Energy Capacity 1570 Matter Stores 300 Matter Capacity 300 Sight Range 17 Robot Scan Range 18 Terrain Scan Range 24 Terrain Scan Density 2110 Power Amplification 40 Armor Coverage 1200 Resistance: TH 15 Weapon Shielding 66 Weapon Cycling 25 Phase Shifting 15 Evasion (%) 86 Targeting Accuracy 20 Target Analysis 10 Armor Integrity Analysis 40 Recoil Reduction 4 Salvage Targeting 2 Offensive Hacking 25 Defensive Hacking 24 Relay Coupler Types 2 Relay Coupler Value 156 Item Schematics ----------------- Exp. Core Analyzer | -2/Quarantine | Archive Thermal Defense Suite | -2/Quarantine | Archive Exp. Biometal Heavy Treads | -2/Quarantine | Archive Adv. Particle Accelerator | -2/Quarantine | Archive Imp. KE Penetrator | -2/Quarantine | Archive Kinetic Spear | -2/Quarantine | Archive Cld. Q-thruster | -2/Quarantine | Archive Exp. Shock Absorption System | -2/Quarantine | Archive Adv. Myomer Leg | -2/Quarantine | Archive Centrium Heavy Treads | -2/Quarantine | Archive Plasma Sword | -2/Quarantine | Archive Robot Schematics ------------------ A-15 Conveyor | -2/Quarantine | Archive T-07 Excavator | -2/Quarantine | Archive K-01 Serf | -2/Quarantine | Archive P-80 Master | -2/Quarantine | Archive Fabricated ------------ Adv. Treads | x2 | -7/Factory Hyb. Antimatter Reactor | x2 | -6/Factory M-13 Machinist | x1 | -6/Factory Imp. Remote Datajack | x1 | -5/Factory A-27 Freighter | x1 | -3/Research | Preloaded Exp. Biometal Heavy Treads | x1 | -1/Access Alien Tech Used ----------------- Core Reset Matrix Core Cannon Achievements -------------- None Challenges ------------ None RPGLIKE | -11 -10 -10 -9 -9 -9 -8 -8 -8 -8 -8 -7 -7 -7 -7 -6 -6 -6 -6 -6 -6 -6 -5 -5 -5 -5 -5 -4 -4 -3 -3 -2 -2 -2 -1 --------- Run | Scr Mat Min Mat Min Exi Min Mat Gar Mat Gar Fac Gar Fac Gar Fac Gar Fac Low Low Zio Dee Pro Fac Gar Fac Gar Fac Gar Res Gar Res Gar Qua Acc Levels Raised 33 | . 2 . 5 . . 2 3 1 . 1 2 . 1 . 1 1 . 1 . . . 1 . 1 1 . 1 1 1 1 2 1 2 1 XP Earned 53362 | 3250 3115 500 6707 915 243 1800 4607 1753 759 397 3559 693 235 504 1729 1248 735 461 523 86 247 952 890 1512 106 596 1735 1185 2163 1311 2000 2209 2356 2281 XP Spent 52450 | 2850 2700 . 6450 1475 . 800 5750 . . 2600 . 3405 1250 . . 3680 . 800 . . 920 1800 . 1100 1500 . . . 3500 . 5400 . 4100 2370 Upgrades 84 | 10 3 . 6 6 . 4 12 . . 1 . 7 1 . . 5 . 1 . . 3 3 . 1 1 . . . 1 . 2 . 5 12 Power Slot 2 | . . . . 1 . . . . . . . . . . . . . 1 . . . . . . . . . . . . . . . . Propulsion Slot 4 | 1 . . . 1 . . 1 . . . . . . . . . . . . . . . . . . . . . . . . . 1 . Utility Slot 12 | 1 2 . 3 . . . 1 . . 1 . 1 . . . 1 . . . . . . . . . . . . 1 . 1 . . . Weapon Slot 2 | 1 1 . . . . . . . . . . . . . . . . . . . . . . . . . . . . . . . . . Core Integrity 18 | . . . . 3 . . . . . . . 5 . . . 4 . . . . . . . . . . . . . . . . . 6 Heat Dissipation 12 | 1 . . . 1 . 2 . . . . . 1 . . . . . . . . 2 . . . . . . . . . . . . 5 Energy Generation 4 | . . . . . . . . . . . . . . . . . . . . . . . . . . . . . . . . . 4 . Mass Support 4 | . . . 1 . . . . . . . . . . . . . . . . . 1 . . 1 . . . . . . 1 . . . Inventory Capacity 6 | 2 . . 1 . . . 1 . . . . . 1 . . . . . . . . . . . 1 . . . . . . . . . Sight Range 1 | 1 . . . . . . . . . . . . . . . . . . . . . . . . . . . . . . . . . . Sensor Range 9 | . . . . . . . 9 . . . . . . . . . . . . . . . . . . . . . . . . . . . Terrain Scan Density 1 | 1 . . . . . . . . . . . . . . . . . . . . . . . . . . . . . . . . . . Ranged Accuracy 1 | . . . . . . 1 . . . . . . . . . . . . . . . . . . . . . . . . . . . . Hack Attack % 4 | 1 . . . . . . . . . . . . . . . . . . . . . 3 . . . . . . . . . . . . Hack Defense % 2 | 1 . . 1 . . . . . . . . . . . . . . . . . . . . . . . . . . . . . . . KI Damage % 1 | . . . . . . 1 . . . . . . . . . . . . . . . . . . . . . . . . . . . . TH Damage % 1 | . . . . . . . . . . . . . . . . . . . . . . . . . . . . . . . . . . 1 Protomatter Created 10046 | . 285 8 432 16 2 112 532 370 362 107 962 340 175 363 262 230 321 366 238 151 883 560 . 479 99 281 485 185 151 210 . 671 311 97 Integrity Restored 19883 | 3 848 . 1133 143 78 336 1543 493 238 113 1702 998 177 785 763 495 909 1080 335 528 1326 602 70 927 19 298 526 450 383 618 . 1027 808 129 Core 12824 | 3 705 . 693 113 78 336 925 295 151 66 1181 556 111 555 502 495 909 571 115 320 694 377 44 504 7 155 303 297 214 345 . 710 365 129 Parts 7059 | . 143 . 440 30 . . 618 198 87 47 521 442 66 230 261 . . 509 220 208 632 225 26 423 12 143 223 153 169 273 . 317 443 . Protomatter Decayed 4098 | . . 4 45 . . . 9 102 223 68 440 . 110 94 56 . . 53 398 57 437 229 . 251 48 500 211 30 20 . . 404 212 97 Game ------ Seed CombatGodEngine Manual? 0 Play Time 06:40:19 Cumulative 461.5 hours Start 2022.07.15 @ 13:08:10 End 2022.07.19 @ 20:17:54 Sessions 15 Manual Loads 0 Difficulty Rogue Special Mode Winter2019/RPGLIKE Game No. 177 Rogue 174 Adventurer 3 Explorer 0 Win Type - Total 8 Types 5/1/0/1/0/1/0/0/0 Lore% 85 Gallery% 88 Achievement% 78 Wizard Run 0 Options --------- ASCII 0 Keyboard 0 Movement Numpad Keybinds 0 Fullscreen 1 Font 18/SmallcapsGlow Map View 76x50 Tactical HUD 1 Map Filters NONE Filters NONE Steam 1 RUN: b1c1cf25-356f-456b-aec2-50c88cb94bec